Cogmind - Beta 16 X1 @@@ ROGUE MODE // 2025.10.12 @ 15:40:01 Player: Dwarfinator Result: Destroyed by S-43 Plague with Heavy Machine Gun Performance ------------- Evolutions (8) 4000 Regions Visited (32) 6400 Robots Destroyed (563) 2815 Value Destroyed (29366) 29366 Prototype IDs (168) 3360 Alien Tech Used (5) 1000 Bonus (19179) 19179 TOTAL SCORE: 66120 Bonus ------- High Alert Combat Kills 6584 Follower Combat Kills 1822 Network Hubs Disabled 600 Registered with UFD 300 Met Optimus in HQ 500 Met Imprinter 300 Destroyed Z-Imprinter 1000 Triggered Deep Caves Wall 500 Exposed GOLEM Chamber 500 Met Zhirov 300 Found Hidden Lab 3000 Used Core Reset Matrix 3000 Pursued by Intercept 1000 Met Optimus at Protoforge 1000 Friendly Fire -1227 Cogmind --------- Core Integrity 0/1450 Matter 120/300 Energy 99/100 System Corruption 41% Temperature Cool (0) Movement Core (50) Location -2/Protoforge Parts ------- > --- POWER (3) -------- (None) > --- PROPULSION (6) --- (None) > --- UTILITY (11) ----- (None) > --- WEAPON (3) ------- (None) > --- INVENTORY (5) ---- Advanced Coolant Injector Deep Structural Scanner Long-range Tractor Beam Guided Remote Datajack Experimental Jetlance Peak State ------------ > --- POWER ------------ Quantum Reactor Vortex Chain Reactor > --- PROPULSION ------- Experimental Biometal Heavy Treads Advanced Heavy Siege Treads High-density Centrium Heavy Treads > --- UTILITY ---------- Experimental Cooling System Huge Storage Unit Assembled Biocell Array Assembled Combat Suite Heavy Regenerative Plating Thermal Barrier Experimental EM Shield Advanced Force Field System Mapper A0-MCA's Component Scanner > --- WEAPON ----------- Heavy Quantum Rifle Enhanced Nova Cannon Cooled Nova Cannon > --- INVENTORY -------- Advanced Coolant Injector Experimental Energy Well Experimental Energy Well Deep Structural Scanner Tactical Coordination Suite Advanced Weapon Cycler Femtoactuators Advanced Transmission Jammer Experimental Cloaking Device SHELL Armor Graphene Brace Long-range Tractor Beam Sensor Drone Bay Transdimensional Reconstructor Core Regenerator EMDS Warp Cannon Graviton Cannon Heavy Shock Bomb Launcher Guided Remote Datajack LU-1G1's Laser Shovel Thermal Lance [Rating: 232] Favorites ----------- Power Particle Reactor Engine Ion Engine Power Core Neutrino Core Reactor Particle Reactor Propulsion Assembled Alloy Leg Treads Armored Treads Leg Assembled Alloy Leg Wheel Armored Wheel Hover Unit Cooled Gravmag System Utility Huge Storage Unit Device Sensor Drone Bay Storage Huge Storage Unit Processor Expert System Hackware Advanced Hacking Suite Protection Assembled Alloy Armor Weapon Assembled Focal Cannon Energy Gun Heavy Quantum Rifle Energy Cannon Assembled Focal Cannon Ballistic Gun Advanced KE Penetrator Ballistic Cannon Light Cannon Launcher Rocket Launcher Special Weapon Junk Cannon Impact Weapon Heavy Hammer Piercing Weapon Thermal Lance Special Melee Weapon Improved Datajack Build | -11 -10 -10 -9 -9 -9 -8 -8 -8 -8 -8 -6 -6 -6 -6 -6 -5 -5 -5 -5 -5 -5 -4 -4 -4 -4 -3 -3 -3 -3 -2 -2 -2 ------- Run | Yrd Mat Min Mat Min Exi Min Mat Sto Rec Scr Fac Low Low Zio Dee Pro Fac Ext Cet Arc Hub Fac Upp Upp Zhi Pro Res Arm Lab Res Tes Frg Slots Evolved 16 | . . . 2 . . . 2 . . . 4 . . . . . 2 . . . . 2 . . . . 2 . . 2 . . Power 2 | . . . . . . . . . . . 1 . . . . . . . . . . 1 . . . . . . . . . . Propulsion 4 | . . . 1 . . . 1 . . . . . . . . . . . . . . . . . . . 2 . . . . . Utility 9 | . . . . . . . 1 . . . 3 . . . . . 2 . . . . 1 . . . . . . . 2 . . Weapon 1 | . . . 1 . . . . . . . . . . . . . . . . . . . . . . . . . . . . . Parts Attached 289 | 7 12 2 21 3 3 . 13 7 7 13 29 4 1 5 23 . 4 15 7 8 7 11 3 5 3 3 20 9 5 7 16 16 Power 34 | 1 . . 1 . . . 2 . 1 2 6 . . . 1 . . 1 1 1 . 2 . 2 1 . 1 2 . 2 3 4 Engine 11 | 1 . . 1 . . . 2 . 1 2 4 . . . . . . . . . . . . . . . . . . . . . Core 2 | . . . . . . . . . . . . . . . . . . . . . . 1 . 1 . . . . . . . . Reactor 21 | . . . . . . . . . . . 2 . . . 1 . . 1 1 1 . 1 . 1 1 . 1 2 . 2 3 4 Propulsion 61 | 2 . . 12 2 . . 4 4 3 2 8 1 . 1 3 . . 1 1 1 . . . . 1 . 8 . . 2 1 4 Treads 38 | 2 . . 7 2 . . 4 3 2 . 5 . . . 1 . . . 1 1 . . . . . . 5 . . 2 1 2 Leg 5 | . . . . . . . . . . . . . . . 2 . . 1 . . . . . . . . 1 . . . . 1 Wheel 16 | . . . 5 . . . . . 1 2 3 1 . 1 . . . . . . . . . . . . 2 . . . . 1 Hover 2 | . . . . . . . . 1 . . . . . . . . . . . . . . . . 1 . . . . . . . Flight . | . . . . . . . . . . . . . . . . . . . . . . . . . . . . . . . . . Utility 124 | 2 4 2 2 1 2 . 2 1 2 2 10 3 1 2 14 . 4 10 2 5 5 6 2 2 1 3 9 4 5 1 9 6 Device 68 | 1 1 2 . 1 . . 1 . 1 1 6 3 . 2 5 . 2 6 . 5 3 4 2 2 . 2 5 3 1 1 6 2 Storage 9 | 1 2 . 1 . 2 . . . . . . . . . 1 . . . . . . . . . . . 1 . 1 . . . Processor 7 | . . . . . . . . . . . 2 . 1 . . . 1 . . . . . . . . 1 . . 2 . . . Hackware 7 | . . . . . . . . 1 . . . . . . . . 1 . . . 1 . . . . . 2 . . . 2 . Protection 33 | . 1 . 1 . . . 1 . 1 1 2 . . . 8 . . 4 2 . 1 2 . . 1 . 1 1 1 . 1 4 Artifact . | . . . . . . . . . . . . . . . . . . . . . . . . . . . . . . . . . Weapon 70 | 2 8 . 6 . 1 . 5 2 1 7 5 . . 2 5 . . 3 3 1 2 3 1 1 . . 2 3 . 2 3 2 Energy Gun 10 | 1 . . 2 . . . . 1 . 1 . . . . 3 . . . 1 . . . . . . . . . . . 1 . Energy Cannon 13 | . 1 . 1 . . . 2 . . . 1 . . . 1 . . . . . 1 1 . . . . 1 . . 2 2 . Ballistic Gun 15 | 1 3 . 2 . . . 1 . . . . . . . . . . 2 2 1 1 1 . . . . . 1 . . . . Ballistic Cannon 11 | . 2 . . . . . 1 . . 2 1 . . 1 . . . . . . . . . 1 . . . 2 . . . 1 Launcher 6 | . . . . . . . 1 1 . . . . . 1 . . . . . . . 1 1 . . . 1 . . . . . Special Weapon 9 | . 1 . . . . . . . . 3 2 . . . 1 . . 1 . . . . . . . . . . . . . 1 Impact Weapon 3 | . 1 . 1 . . . . . . 1 . . . . . . . . . . . . . . . . . . . . . . Slashing Weapon . | . . . . . . . . . . . . . . . . . . . . . . . . . . . . . . . . . Piercing Weapon 1 | . . . . . . . . . . . 1 . . . . . . . . . . . . . . . . . . . . . Special Melee Weapon 2 | . . . . . 1 . . . 1 . . . . . . . . . . . . . . . . . . . . . . . Unidentified Prototypes 35 | . . 1 2 . . . . 3 . 2 1 . . . 7 . . 3 3 . 2 1 . . 4 1 . 1 4 . . . Corrupted Parts 7 | . . . . . . . . . . . . . . . . . . . 4 1 . . . . . . . . 1 . . 1 System Corruption 35 | . . . . . . . . . . . . . . . . . . . 16 8 . . . . . . . . 2 . . 9 Parts Lost 46 | . . . 1 . . . . . 1 1 7 . . . 7 . . 3 . 1 1 2 . . . . . . . . . 22 Power 6 | . . . 1 . . . . . . . 1 . . . . . . . . 1 . . . . . . . . . . . 3 Propulsion 12 | . . . . . . . . . . 1 3 . . . 1 . . . . . . . . . . . . . . . . 7 Utility 22 | . . . . . . . . . 1 . 3 . . . 6 . . 2 . . 1 1 . . . . . . . . . 8 Weapon 6 | . . . . . . . . . . . . . . . . . . 1 . . . 1 . . . . . . . . . 4 Highest Loss Streak 18 | . . . 1 . . . . . 1 1 3 . . . 4 . . 1 . 1 1 1 . . . . . . . . . 18 To Critical Strikes . | . . . . . . . . . . . . . . . . . . . . . . . . . . . . . . . . . Average Backups 20 | 4 10 15 22 24 22 24 23 24 24 24 20 21 20 20 19 19 18 18 18 18 19 20 20 22 21 21 22 22 21 23 22 21 Power . | . 1 1 . 1 . 1 1 1 1 1 1 1 1 1 . . . . . . 1 . . . . . . . . . . . Propulsion 2 | 1 2 3 5 7 6 7 6 5 6 5 3 3 3 3 1 1 1 1 . 1 1 1 . . 1 1 . . . . . . Utility 10 | . 2 3 6 7 6 7 7 7 7 7 8 10 9 10 11 12 12 13 13 12 12 12 13 15 15 14 15 16 14 14 14 12 Weapon 5 | 1 4 7 8 8 8 7 8 9 9 8 4 3 4 4 4 3 2 3 3 3 3 4 4 4 4 4 3 4 3 4 4 4 Tool/Special . | . . . . . . . . . . . . . . . . . . . . . . . . . . . . . . . . . Unused Backups 65 | . 6 . 5 2 1 3 . 1 1 11 3 . 1 . 9 . 1 1 . 1 1 . 1 . 1 2 2 . 4 1 4 3 Power 1 | . . . . . . . . . . . . . . . . . . . . . . . . . . 1 . . . . . . Propulsion 11 | . 4 . . . . . . . . 3 2 . . . 1 . . . . 1 . . . . . . . . . . . . Utility 29 | . 1 . 1 . . 1 . . . 3 . . 1 . 8 . 1 1 . . . . . . 1 1 2 . 2 1 4 1 Weapon 22 | . 1 . 4 2 1 2 . 1 1 4 1 . . . . . . . . . 1 . 1 . . . . . 1 . . 2 Tool/Special 2 | . . . . . . . . . . 1 . . . . . . . . . . . . . . . . . . 1 . . . Average Slot Usage (%) 91 | . 99 100 99 100 98 100 99 100 99 95 89 85 86 81 86 100 99 99 92 82 80 78 91 94 92 94 88 84 82 84 84 72 Engine 4 | . 14 14 10 11 11 11 9 9 8 9 12 6 6 6 4 . . . . . . . . . . . . . . . . . Reactor 7 | . . . . . . . . . . . . 6 6 6 7 13 11 11 10 8 11 10 15 11 15 15 14 13 14 13 12 7 Treads 10 | . 28 28 16 11 11 11 19 22 18 8 13 13 13 7 4 . . . 2 9 5 5 5 5 5 5 15 14 14 12 13 11 Leg 4 | . . . . . . . . . . . . . . . 10 26 23 23 10 . . . 9 10 10 10 1 . . . . . Wheel 7 | . . . 16 21 22 21 16 13 18 27 12 12 13 11 6 . . . 3 1 5 5 . . . . . . . . . . Device 15 | . 13 14 7 9 9 10 9 2 3 10 12 13 13 13 9 13 15 16 17 20 15 17 25 25 23 25 21 20 14 22 23 20 Storage 9 | . 14 14 11 11 10 11 9 9 9 9 6 6 6 6 9 13 11 5 5 5 5 5 9 10 10 10 9 9 9 8 8 7 Processor 2 | . . . . . . . . . . . 6 6 6 6 6 6 10 11 11 11 8 5 . . . . . . 3 4 4 3 Hackware 1 | . . . . . . . . 8 5 . . . . . . . 2 4 . . 1 . . . . . 3 4 4 4 4 2 Protection 6 | . . . 3 1 . . 8 7 9 7 9 6 6 6 7 6 3 5 11 5 5 7 8 10 10 10 5 6 8 5 4 6 Energy Cannon 6 | . 3 . 9 11 . 9 7 8 5 . 1 . . . 7 20 13 11 4 . . . 12 14 10 10 9 9 10 8 8 5 Ballistic Gun 2 | . 19 . 1 . . . . . . . . . . . . . . 4 6 16 14 12 1 . . . . . . . . . Ballistic Cannon 5 | . . 28 18 18 . 19 15 18 18 8 . . . . 1 . . . . . . . . . 2 4 3 3 2 4 1 . Special Weapon 1 | . 2 . . . 10 1 . . . 4 10 9 8 11 1 . 2 . . . . . . . . . . . . . . . Peak Build Rating 232 | 7 10 16 19 17 16 16 29 31 30 50 81 83 81 87 131 124 135 135 136 138 132 140 169 164 165 166 182 184 188 213 232 230 Average Rating 105 | 6 8 9 15 15 15 15 21 24 28 38 71 76 79 79 94 123 131 126 128 124 125 136 161 160 161 163 172 178 180 201 217 216 On Entrance 96 | . 7 8 10 17 15 16 15 23 27 29 50 65 70 81 83 123 124 132 129 128 129 129 136 164 162 163 163 176 178 184 208 232 Avg Prop Armor Cover (%) 5 | . . . 6 8 11 8 13 13 13 6 10 9 9 5 3 2 . 3 6 6 7 5 7 6 7 7 2 . . . . . Naked Turns 9 | . . . . . . . . . . . . . . . . . . . . . . . . . . . . . . . . 9 Heaviest Build 227 | 13 32 30 101 101 91 95 118 105 107 124 152 164 160 160 173 185 193 179 181 167 192 215 213 221 223 217 222 217 216 226 218 227 Greatest Support 255 | 40 40 40 60 60 28 28 80 80 28 52 90 32 26 40 118 118 118 118 106 160 28 28 100 100 60 60 225 215 215 245 255 255 Greatest Overweight (x) 12 | . . . 9 8 3 3 4 3 4 4 12 9 6 6 12 2 1 1 6 5 6 7 6 3 3 3 6 1 1 . 1 11 Average Overweight (x) 2 | . . . 2 3 2 3 2 2 3 2 5 4 5 3 2 1 1 1 3 2 5 6 2 2 3 3 . . . . . . Largest Inventory Capacity 25 | 8 15 15 25 25 25 25 25 25 25 25 25 25 25 25 25 25 25 25 25 25 25 25 25 25 25 25 25 25 25 25 25 25 Average Capacity 23 | 7 12 15 23 25 24 25 25 25 25 25 25 25 25 25 25 25 25 25 25 25 25 25 24 25 25 25 25 25 25 25 25 24 Most Carried 25 | 8 15 15 25 25 25 25 25 25 25 25 25 25 25 25 25 25 25 25 25 25 25 25 25 25 25 25 25 25 25 25 25 25 Average Carried 23 | 4 10 14 22 24 23 24 24 24 24 24 24 24 24 24 23 25 24 24 24 24 24 24 23 24 24 24 24 24 23 24 24 23 Final Capacity 25 | 8 15 15 25 25 25 25 25 25 25 25 25 25 25 25 25 25 25 25 25 25 25 25 25 25 25 25 25 25 25 25 25 5 Final Carried 25 | 8 15 15 25 25 25 25 25 25 25 25 25 25 25 25 25 25 25 25 25 25 25 25 25 25 25 25 25 25 25 25 25 5 Scrap Suit Usage (%) 1 | . . . . . . . . . . . . . . . . . . . . . . . . . . . . . . . . 3 Class Distribution -------------------- 33% | Scavenger-Tank 13% | Tank 9% | Mutant 8% | Commander-Mutant 7% | Scavenger-Mutant 5% | Hacker-Tank 4% | Alien-Tank 3% | Infiltrator-Tank 3% | Gunner Dominant Class ---------------- Mutant | -10/Materials Mutant | -10/Mines Gunner | -9/Materials Scientist-Gunner | -9/Mines Scavenger-Mutant | -9/Exiles Scientist-Gunner | -8/Mines Scientist-Tank | -8/Materials Scavenger-Tank | -8/Storage Tank | -8/Recycling Commander-Mutant | -8/Scraptown Tank | -6/Factory Scavenger-Tank | -6/Lower Caves Scavenger-Mutant | -6/Lower Caves Tank | -6/Zion Scavenger-Tank | -6/Deep Caves Tank | -5/Proximity Caves Infiltrator-Gunner | -5/Factory Scavenger-Tank | -5/Extension Scavenger-Tank | -5/Cetus Scavenger-Tank | -5/Archives Scavenger-Tank | -5/Hub_04(d) Scavenger-Tank | -4/Factory Scavenger-Tank | -4/Upper Caves Scavenger-Tank | -4/Upper Caves Scavenger-Mutant | -4/Zhirov Scavenger-Tank | -3/Proximity Caves Scavenger-Tank | -3/Research Infiltrator-Tank | -3/Armory Alien-Tank | -3/Lab Alien-Tank | -2/Research Hacker-Tank | -2/Testing Hacker-Tank | -2/Protoforge Resources | -11 -10 -10 -9 -9 -9 -8 -8 -8 -8 -8 -6 -6 -6 -6 -6 -5 -5 -5 -5 -5 -5 -4 -4 -4 -4 -3 -3 -3 -3 -2 -2 -2 ----------- Run | Yrd Mat Min Mat Min Exi Min Mat Sto Rec Scr Fac Low Low Zio Dee Pro Fac Ext Cet Arc Hub Fac Upp Upp Zhi Pro Res Arm Lab Res Tes Frg Matter Collected 17781 | 330 624 168 1225 302 50 122 617 600 210 255 1124 262 80 105 953 20 251 467 40 627 1398 891 241 171 90 218 1097 729 86 1036 1331 2061 Remotely 3461 | . . . . . . . . . . . . . . . . . . . . . 122 592 . . . 154 525 357 . 683 543 485 Salvage Created 31255 | 205 595 38 1101 179 . 150 742 629 349 589 2187 189 538 . 2340 55 536 1576 280 475 2075 1709 273 153 421 506 2074 1207 85 1426 3338 5235 Parts 1414 | 21 24 10 73 28 . 9 42 41 8 20 69 9 3 . 42 1 27 70 13 25 111 73 16 3 2 19 143 58 7 73 120 254 Haulers Intercepted 13 | . 1 . 4 . . . 1 4 . . . . . . . . . . . . . 1 . . . 1 1 . . . . . Recyclers Shooed 14 | . 1 . 3 1 . . . 3 . . 2 . . . . . . 3 . . . 1 . . . . . . . . . . Parts Field Recycled . | . . . . . . . . . . . . . . . . . . . . . . . . . . . . . . . . . Retrieved Matter . | . . . . . . . . . . . . . . . . . . . . . . . . . . . . . . . . . Parts Self-Destructed 26 | . . . . . . . . . . . . 6 1 2 . 1 . . . . . . 9 1 2 4 . . . . . . Prevented 15 | . . . . . . . . . . . . . . . . . . . . . . . . . . 15 . . . . . . Parts Restored 2 | . . . . . . . . . . . . . . . . . . 1 . . . . . . . . 1 . . . . . Broken 2 | . . . . . . . . . . . . . . . . . . 1 . . . . . . . . 1 . . . . . Kills | -11 -10 -10 -9 -9 -9 -8 -8 -8 -8 -8 -6 -6 -6 -6 -6 -5 -5 -5 -5 -5 -5 -4 -4 -4 -4 -3 -3 -3 -3 -2 -2 -2 ------- Run | Yrd Mat Min Mat Min Exi Min Mat Sto Rec Scr Fac Low Low Zio Dee Pro Fac Ext Cet Arc Hub Fac Upp Upp Zhi Pro Res Arm Lab Res Tes Frg Combat Hostiles Destroyed 475 | . 8 6 24 5 . 1 17 14 4 11 35 6 . . 60 1 12 19 3 3 26 26 6 2 . 7 28 24 1 18 36 72 Melee 7 | . . . . . . . . . 1 . . . . . . . . . . . 2 . . . . . . 2 . . . 2 Guns 56 | . 8 . 1 . . . . . . . . . . . 1 . . 2 . 3 23 10 . . . . . . . . 3 5 Cannons 223 | . . 6 23 5 . 1 13 10 3 1 13 1 . . 7 1 3 16 . . . . 2 2 . 2 23 21 1 17 29 23 AOE 115 | . . . . . . . 4 4 . 8 6 4 . . 41 . 9 . . . . 13 4 . . 4 5 . . . . 13 Classes Destroyed 36 | 3 5 . 1 . . 1 2 1 . 4 4 . . . 4 . . 1 . . 1 3 . . . . . 1 . . 2 3 Worker 25 | 1 2 1 3 . . 1 1 . . . 8 . . . . . . . . . 4 1 . . . . 2 . . 1 . . Builder 16 | . 1 . 3 . . . 2 1 . . . . . . . . . . . . 4 . . . . . 3 . . 1 1 . Tunneler 14 | 7 . . 1 3 . . . . . . 2 . . . . . 1 . . . . . . . . . . . . . . . Hauler 13 | . 1 . 4 . . . 1 4 . . . . . . . . . . . . . 1 . . . 1 1 . . . . . Recycler 27 | 1 4 . 3 1 . 1 1 . 2 . 4 . . . . . 1 4 . . 1 . . . . . 2 . . 1 1 . Mechanic 6 | . . . . . . . . 1 . . 3 . . . . . . . . . . . . . . . . . . . . 2 Operator 9 | . . . . . . . 1 . . . . . . . . . 1 1 . 5 . . . . . . . . . . 1 . Drone 12 | . . . . . . . . . . . . . . . . . . . . . . 1 . . . . . . . . . 11 Watcher 21 | . 3 . 2 . . . 1 . . . . . . . . . 2 2 1 . 1 . . . . . 3 1 . 1 2 2 Swarmer 97 | . 6 6 11 4 . . 4 4 . . 7 4 . . . . 9 8 . . 4 4 4 . . 2 9 10 . . . 1 Cutter 3 | . . . . . . . . . . . 3 . . . . . . . . . . . . . . . . . . . . . Saboteur 2 | . . . . . . . . . . . . . . . . . . . . . . 1 . . . . . . . . . 1 Grunt 75 | . 2 . 9 1 . . 7 8 . . 12 . . . . . 1 2 . . 6 10 . . . 5 1 . . 4 3 4 Brawler 4 | . . . . . . . 2 . . . . . . . . . . . . . . 1 . . . . . . . . . 1 Duelist 6 | . . . . . . . . . . . . . . . . . . . . . . 1 . . . . . 4 . . . 1 Protector 2 | . . . . . . . . . . . . . . . . . . . . . 2 . . . . . . . . . . . Researcher 2 | . . . . . . . . . . . . . . . . . . . . . . . . . . . . . . . 2 . Sentry 39 | . . . 4 . . . 4 2 4 . 1 . . . . . 1 6 . 3 4 3 . 1 . . 1 . . 2 . 3 Demolisher 1 | . . . . . . . . . . . . . . . . . . . . . . . . . . . . 1 . . . . Specialist 17 | . . . . . . . . . . . 5 . . . . . . . . . . . . . . . . 5 . . 3 4 Hunter 17 | . . . . . . 1 . . . . 2 . . . . . . 1 . . . . . . . . 2 . . 3 4 4 Programmer 73 | . . . . . . . . . . . 4 . . . . 1 1 . . . 4 6 2 . . . 15 4 . 5 17 14 Heavy 1 | . . . . . . . . . . . 1 . . . . . . . . . . . . . . . . . . . . . Behemoth 2 | . . . . . . . . . . . . . . . . . . 2 . . . . . . . . . . . . . . Cetus Guard 3 | . . . . . . . . . . . . . . . . . . . 3 . . . . . . . . . . . . . Enhanced Grunt 1 | . . . . . . . . . . . . . . . 1 . . . . . . . . . . . . . . . . . Lightning 6 | . . . . . . . . . . . . . . . . . . . . . 6 . . . . . . . . . . . Hotshot 5 | . . . . . . . . . . . . . . . . . . . . . . . . . . . . . . . . 5 Immortal 3 | . . . . . . . . . . . . . . . . . . . . . . . . . . . . . . . . 3 Overlord 1 | . . . . . . . . . . . . . . . . . . . . . . . . . . . . . . . . 1 Tracker 6 | . . . . . . . . . . . . . . . . . . . . . . . . . . . . . . 2 4 . Combat Programmer 6 | . . . . . . . . . . . . . . . . . . . . . . . . . . . . . . 2 4 . Striker 10 | . . . . . . . . . . . . . . . . . . . . . . . . . . . . . . . . 10 Executioner 8 | . . . . . . . . . . . . . . . . . . . . . . . . . . . . . . . . 8 Fortress 1 | . . . . . . . . . . . . . . . . . . . . . . . . . . . . . . . 1 . Federalist 2 | . . . . . . . . . . 2 . . . . . . . . . . . . . . . . . . . . . . Guru 1 | . . . . . . . . . . 1 . . . . . . . . . . . . . . . . . . . . . . Scrapper 8 | . . . . . . . . . . 7 . . . . . . . . . . . . . . . . . . . . . 1 Scrapoid 1 | . . . . . . . . . . . . . . . . . . . . . . . . . . . . . . . . 1 Z-Light 8 | . . . . . . . . . . . . . . . 8 . . . . . . . . . . . . . . . . . Decomposer 5 | . . . . . . . . . . . . 2 3 . . . . . . . . . . . . . . . . . . . Packrat 3 | . . . . . . . . . . . . . 3 . . . . . . . . . . . . . . . . . . . Assembler 2 | . . . . . . . . . . . . . . . 2 . . . . . . . . . . . . . . . . . Assembled 40 | . . . . . . . . . . . . . . . 40 . . . . . . . . . . . . . . . . . Golem 12 | . . . . . . . . . . . . . . . 12 . . . . . . . . . . . . . . . . . Thug 2 | . . . . . . . . . . . . 2 . . . . . . . . . . . . . . . . . . . . Guerrilla 1 | . . . . . . . . . . . . . . . . . . 1 . . . . . . . . . . . . . . Mutant 2 | . . . . . . . . . . 1 . . . . . . . . . . . . . 1 . . . . . . . . Best Kill Streak 41 | 2 3 3 4 4 . 1 7 4 2 11 9 4 . . 41 1 6 5 4 3 6 10 4 1 . 6 8 6 1 5 6 22 Combat Bots Only 39 | . 3 3 4 4 . 1 4 4 1 11 5 4 . . 39 1 5 5 3 3 5 10 4 1 . 5 8 6 1 5 6 22 Max Kills in Single Turn 11 | 1 1 1 2 1 . 1 3 2 1 4 2 4 1 . 11 1 3 2 1 1 2 3 3 1 . 2 2 2 1 2 1 2 Gunslinging 1 | . . . . . . . . . . . . . . . . . . . . . 1 . . . . . . . . . . . Exploded 11 | . . . . . . . 3 2 . 4 2 4 . . 11 . 3 . . . . 3 3 . . 2 2 . . . . 2 Melee 1 | . . . . . . . . . 1 . . . . . . . . . . . 1 . . . . . . 1 . . . 1 Uniques/NPCs Destroyed 2 | . . . . . . . . . . . . . . . 1 . . . . . . . . . . . . . 1 . . . Z-Imprinter (-6/Deep Caves) A5 (-3/Lab) Combat | -11 -10 -10 -9 -9 -9 -8 -8 -8 -8 -8 -6 -6 -6 -6 -6 -5 -5 -5 -5 -5 -5 -4 -4 -4 -4 -3 -3 -3 -3 -2 -2 -2 -------- Run | Yrd Mat Min Mat Min Exi Min Mat Sto Rec Scr Fac Low Low Zio Dee Pro Fac Ext Cet Arc Hub Fac Upp Upp Zhi Pro Res Arm Lab Res Tes Frg Hostile Shots Fired 2540 | . 22 18 73 11 . 2 46 52 20 36 232 9 . . 192 4 50 79 22 18 168 116 13 26 . 21 108 204 22 113 218 645 Missed 783 | . 6 4 20 6 . 2 13 20 3 11 71 4 . . 52 2 14 23 9 4 22 36 5 6 . 10 50 92 5 29 66 198 Deflected 9 | . . . . . . . . . . . . . . . . . . . . . . . . . . . 1 4 . 2 2 . Hits 1757 | . 16 14 53 5 . . 33 32 17 25 161 5 . . 140 2 36 56 13 14 146 80 8 20 . 11 58 112 17 84 152 447 Melee 91 | . . . . . . . . . . . 4 . . . 7 . . . . . . . . . . . . . . . . 80 Projectile 1666 | . 16 14 53 5 . . 33 32 17 25 157 5 . . 133 2 36 56 13 14 146 80 8 20 . 11 58 112 17 84 152 367 AOE 7 | . . . 1 . . . . . . . 3 . . . . . . . . . . . . . . . . 1 . 1 . 1 Critical Strikes 117 | . 1 . 1 . . . 3 . . 5 8 . . . 2 . 2 5 6 . 16 4 2 4 . 1 4 . . 4 18 31 Actively Blocked 44 | . . . . . . . . . . . . . . . . . 1 5 6 . 2 2 . . . . . . . . . 28 Part Disruptions 13 | . . . . . . . . . . . 4 . . . 3 . . . . . . . . 1 . . 2 . . . 2 1 Actively Blocked 1 | . . . . . . . . . . . . . . . 1 . . . . . . . . . . . . . . . . . Damage Taken 26792 | . 203 105 608 53 . . 489 477 237 527 2470 92 . . 2731 37 504 706 172 216 1627 1425 67 140 . 92 278 772 51 571 813 11329 Core 2835 | . 28 30 86 . . . 102 40 24 47 166 21 . . 217 . 27 59 27 14 95 49 . . . . 14 26 3 30 47 1683 Absorbed by Shields 5939 | . . . . . . . . . 20 . 380 . . . 584 . 134 234 166 178 161 . . 10 . 98 305 828 53 605 879 1304 Reduced by Siege Mode 717 | . . . . . . . . . . . . . . . . . . . . 24 3 . . 9 . 2 6 . 6 32 44 591 Redirected to Shielding 539 | . . . . . . . . . . . . . . . 372 . . . . . . . . . . . . . . . . 167 Ignored by Resistances 8556 | . . . . . . . . . . . . . . . . . . . . . 2806 326 89 36 . 41 699 613 338 588 1550 1470 Regen/Repaired (Parts) 3171 | . . . 133 . . . 70 . . . . . . 1066 . . . 41 16 24 45 74 11 27 . 18 392 74 . 20 51 1109 Core Remaining (%) 78 | 100 . 76 . . . 78 . . . 61 . . . . . 52 . . . . 77 . . . . 95 . . 88 . . . Volleys Fired 1440 | 20 42 13 72 16 . 10 33 42 7 11 108 6 . 5 142 2 41 58 11 68 87 43 9 12 . 17 97 53 18 60 156 181 Largest 3 | 2 2 2 3 3 . 3 3 3 3 1 1 1 . 1 3 3 3 3 1 3 3 3 3 3 . 3 3 3 3 3 3 3 Hottest 290 | 70 100 60 120 120 . 120 135 135 135 33 69 50 . 5 90 75 75 83 65 105 105 153 135 135 . 105 105 163 163 203 290 250 Shots Fired 2614 | 40 72 29 182 37 . 13 81 104 21 11 108 6 . 5 169 6 65 128 11 86 229 95 19 25 . 26 193 142 44 137 275 255 Gun 689 | 40 60 . 19 . . . 2 . . . . . . . 78 . . 33 6 86 224 79 . . . . . . . . 17 45 Cannon 1676 | . . 29 158 37 . 13 76 101 21 . 20 1 . . 53 6 56 93 . . 4 1 17 25 . 21 189 142 44 137 258 174 Launcher 120 | . . . . . . . 3 3 . 5 9 1 . . 26 . 8 . 5 . . 15 2 . . 5 4 . . . . 34 Special 129 | . 12 . 5 . . . . . . 6 79 4 . 5 12 . 1 2 . . 1 . . . . . . . . . . 2 Kinetic 995 | 20 54 29 123 21 . 5 51 62 14 . 19 1 . . 22 . . 33 . 86 224 79 . 3 . 3 39 30 1 35 13 28 Thermal 1214 | 20 18 . 59 16 . 8 27 39 7 . . . . . 31 6 56 93 . . . 1 17 22 . 18 150 112 43 102 249 120 Explosive 56 | . . . . . . . 3 3 . 5 9 1 . . 22 . 8 . . . . 1 2 . . 2 . . . . . . Electromagnetic 238 | . . . . . . . . . . . 1 . . . 82 . . . 11 . 4 14 . . . 3 4 . . . 13 106 Impact 91 | . . . . . . . . . . 5 72 3 . . 11 . . . . . . . . . . . . . . . . . Robot Hit Streak 45 | 4 6 5 8 8 . 5 9 9 10 5 20 7 . 2 31 1 4 12 4 11 17 12 22 41 . 45 19 13 10 35 41 15 Robot Miss Streak 6 | 3 6 3 3 2 . 1 1 3 2 1 4 . . 2 3 2 2 3 1 3 5 2 . . . 2 3 4 3 4 4 6 Penetration Max 1 | . . . . . . . . . . . . . . . . . . 1 . 1 1 1 . . . . . . . . . 1 Secondary Targets 8 | . . . . . . . . . . . . . . . . . . . . . 6 2 . . . . . . . . . . Max Gunslinging Chain 1 | . . . . . . . . . . . . . . . . . . . . . 1 1 . . . . . . . . . . Shots Hit Robots 1578 | 23 45 15 105 16 4 5 56 62 32 7 91 7 12 2 110 2 16 79 4 56 169 54 10 19 9 6 77 83 26 75 125 176 Core Hits 1002 | 10 24 6 39 9 . 4 32 28 6 15 35 6 6 . 203 1 19 38 8 26 75 53 8 5 5 13 54 30 8 36 64 136 Critical Kills 31 | . . . . . . . . . 1 . 4 . . . . . . . . . 11 8 . . . . . . . 1 3 3 Critical Parts Destroyed 42 | 1 . . 1 . . . . 1 1 1 6 . . . . . . 1 . 1 17 12 . . . . . . . . . . Critical Strikes 100 | 2 1 . 4 . . . . 3 3 1 11 . . . 3 . . 1 . 1 28 20 . . . . 2 3 . 3 4 10 Burn 2 | 1 1 . . . . . . . . . . . . . . . . . . . . . . . . . . . . . . . Meltdown 8 | . . . . . . . . . . . . . . . . . . . . . 1 . . . . . . . . 1 3 3 Destroy 50 | 1 . . . . . . . . . . . . . . . . . 1 . 1 27 20 . . . . . . . . . . Blast 18 | . . . 3 . . . . 2 1 . 1 . . . 3 . . . . . . . . . . . 2 3 . 2 . 1 Corrupt 7 | . . . . . . . . . . . . . . . . . . . . . . . . . . . . . . . 1 6 Smash 15 | . . . 1 . . . . 1 2 1 10 . . . . . . . . . . . . . . . . . . . . . Melee Attacks 202 | . 10 . 24 . 4 . 9 6 18 2 19 3 12 . 1 . . 5 1 . 29 5 . . 9 . 1 7 . . . 37 Thermal 129 | . . . . . . . . . . . 19 3 12 . 1 . . 5 1 . 29 5 . . 9 . 1 7 . . . 37 Impact 58 | . 10 . 24 . . . 8 6 8 2 . . . . . . . . . . . . . . . . . . . . . . Slashing . | . . . . . . . . . . . . . . . . . . . . . . . . . . . . . . . . . Piercing . | . . . . . . . . . . . . . . . . . . . . . . . . . . . . . . . . . Sneak Attacks 71 | . 5 . 7 . 4 . 4 2 11 . 13 2 6 . 1 . . 4 . . 4 . . . . . 1 7 . . . . Combat Hostiles 1 | . . . . . . . . . 1 . . . . . . . . . . . . . . . . . . . . . . . Follow-up Attacks . | . . . . . . . . . . . . . . . . . . . . . . . . . . . . . . . . . Damage Inflicted 80240 | 271 827 320 2434 329 . 85 1676 1695 533 820 7529 724 1630 . 6997 99 1453 3837 498 1515 5641 3201 803 698 1273 976 4247 4497 893 3222 6785 14732 Guns 11369 | 271 487 . 109 . . . 22 . . . . . . . 1461 . . 734 84 1515 4174 1013 . . . . . . . . 376 1123 Cannons 34468 | . . 285 1643 329 . 85 920 1150 301 . 954 56 . . 847 99 722 2492 . . 51 32 460 698 . 176 3684 3475 893 3222 6393 5501 Explosions 17435 | . . . . . . . 503 212 . 518 981 221 . . 3734 . 731 . 414 . . 2156 343 . . 800 378 . . . . 6444 Melee 11483 | . 329 . 682 . . . 231 333 232 . 1645 274 1630 . 125 . . 546 . . 1395 . . . 1273 . 122 1022 . . . 1644 Ramming 241 | . 11 35 . . . . . . . . 10 . . . . . . 65 . . 21 . . . . . 63 . . . 16 20 Kinetic 16359 | 148 450 285 1234 186 . 32 559 625 176 . 923 56 . . 808 . . 734 . 1515 4174 1013 . 80 . 40 572 555 33 836 322 1003 Thermal 39490 | 123 37 . 518 143 . 53 383 525 125 . 2085 274 1630 . 252 99 722 3038 . . 1395 736 460 618 1273 136 3369 3942 860 2386 6195 8113 Explosive 6690 | . . . . . . . 503 212 . 518 541 221 . . 2959 . 731 . . . . 390 343 . . 272 . . . . . . Electromagnetic 10409 | . . . . . . . . . . . 31 . . . 2148 . . . 498 . 51 1062 . . . 528 243 . . . 252 5596 Impact 7051 | . 329 . 682 . . . 231 333 232 302 3939 173 . . 830 . . . . . . . . . . . . . . . . . Slashing . | . . . . . . . . . . . . . . . . . . . . . . . . . . . . . . . . . Piercing . | . . . . . . . . . . . . . . . . . . . . . . . . . . . . . . . . . Highest Corruption 41 | . 2 2 3 3 3 3 . . . . 3 3 . . . . . . 16 24 3 . . 1 . . 2 2 5 1 9 41 Average Corruption 3 | . 1 2 3 3 3 3 . . . . 2 2 . . . . . . 14 16 2 . . 1 . . 1 2 2 1 4 14 Corruption Purged 31 | . . . . . . . . . . . . 3 . . . . . . . 24 3 . . 1 . . . . . . . . Corruption Blocked . | . . . . . . . . . . . . . . . . . . . . . . . . . . . . . . . . . Effects 333 | . 17 21 18 13 11 13 . . . . 18 2 . . . . . . 3 19 13 . . 1 . . 16 20 28 4 52 64 Message Errors 83 | . 4 10 6 4 3 1 . . . . 6 1 . . . . . . 1 4 5 . . . . . 3 4 6 . 13 12 Matter Fused 67 | . 5 3 2 2 1 4 . . . . 2 . . . . . . . . 3 2 . . . . . 2 5 11 1 8 16 Heat Flow Errors 44 | . 1 3 1 2 1 1 . . . . 1 . . . . . . . 1 3 3 . . . . . 3 4 3 2 6 9 Energy Discharges 37 | . 1 1 2 2 2 3 . . . . 2 . . . . . . . . 1 . . . 1 . . 5 3 2 1 10 1 Parts Rejected 1 | . . . . . . . . . . . . . . . . . . . . . . . . . . . . . . . . 1 Parts Fused 6 | . . . . . . . . . . . 1 . . . . . . . . . 1 . . . . . . . . . . 4 Data Loss (minor) 32 | . 3 1 1 2 3 1 . . . . 3 1 . . . . . . . 2 . . . . . . 2 1 2 . 5 5 Data Loss (major) 18 | . 1 . 3 . 1 2 . . . . 2 . . . . . . . . . 1 . . . . . . . 2 . 2 4 Misfires 17 | . 1 3 1 1 . 1 . . . . . . . . . . . . . . 1 . . . . . 1 2 2 . 2 2 Alerts 6 | . . . 1 . . . . . . . 1 . . . . . . . 1 . . . . . . . . 1 . . 1 1 Misdirections 3 | . . . . . . . . . . . . . . . . . . . . 1 . . . . . . . . . . . 2 Weapon Failures 19 | . 1 . 1 . . . . . . . . . . . . . . . . 5 . . . . . . . . . . 5 7 Overload Shots . | . . . . . . . . . . . . . . . . . . . . . . . . . . . . . . . . . Overflow Damage 7204 | . 174 16 471 . . . 179 230 68 257 1926 301 666 . 516 . 65 143 11 . 279 16 68 . 198 . 210 430 25 . 358 597 Projectiles 3453 | . . 16 18 . . . 1 2 . 257 1425 39 . . 395 . 53 109 . . . . 68 . . . 187 157 25 . 358 343 Explosions 488 | . . . . . . . 1 . . . 170 . . . 121 . 12 . 11 . . 16 . . . . . . . . . 157 Melee 3263 | . 174 . 453 . . . 177 228 68 . 331 262 666 . . . . 34 . . 279 . . . 198 . 23 273 . . . 97 Knockbacks 113 | . 4 3 16 1 . . 3 8 1 2 34 1 . . 9 . . . . . . . . . . 1 6 4 . 7 3 10 Impact 49 | . 4 1 7 . . . . 1 1 2 28 1 . . 4 . . . . . . . . . . . . . . . . . Kinetic 60 | . . 2 9 1 . . 3 6 . . 3 . . . 5 . . . . . . . . . . 1 6 4 . 7 3 10 Secondary 4 | . . . . . . . . 1 . . 3 . . . . . . . . . . . . . . . . . . . . . Self-Inflicted Damage 654 | . . . . . . . . 27 . . 221 . . . 230 . 36 . . . 16 124 . . . . . . . . . . Shots 18 | . . . . . . . . 1 . . 6 . . . 4 . 2 . . . 2 3 . . . . . . . . . . Rammed 17 | . 2 7 . . . . . 1 . . 1 . . . . . . . . . 3 . . . . . 1 . . . 1 1 Targets Rammed 20 | . 2 7 . . . . . 1 . . 1 . . . . . . 3 . . 3 . . . . . 1 . . . 1 1 Kicked 3 | . . . . . . . . . . . . . . . . . . 3 . . . . . . . . . . . . . . Crushed . | . . . . . . . . . . . . . . . . . . . . . . . . . . . . . . . . . Highest Temperature 375 | 36 179 260 258 199 110 137 359 239 295 189 185 90 275 . 168 30 18 164 217 218 339 87 105 18 208 . 254 332 262 276 375 196 Average Temperature 70 | 11 24 101 66 53 64 41 110 77 104 84 76 47 101 . 32 16 8 17 86 89 110 25 28 7 84 . 43 87 103 88 82 42 Received Heat Transfer 2993 | . 57 . 99 18 . . 261 198 82 413 283 27 . . 314 . 6 31 . 24 267 276 . 13 . 32 9 129 . 50 8 396 Effects 9 | . . . . . . . 3 . 1 . . . . . . . . . 1 . 3 . . . . . . . . . 1 . Shutdowns 1 | . . . . . . . . . . . . . . . . . . . . . . . . . . . . . . . 1 . Energy Bleed 3 | . . . . . . . 1 . 1 . . . . . . . . . . . 1 . . . . . . . . . . . Interference 5 | . . . . . . . 2 . . . . . . . . . . . 1 . 2 . . . . . . . . . . . Siege Activations 26 | . . . . . . . . . . . . . . . . . . . . 2 4 . 1 1 . 1 3 . 1 2 6 5 Total Turns 636 | . . . . . . . . . . . . . . . . . . . . 53 88 . 4 17 . 12 40 . 36 91 142 153 Longest Duration 75 | . . . . . . . . . . . . . . . . . . . . 30 49 . 4 17 . 12 17 . 36 75 42 70 Martial Activations . | . . . . . . . . . . . . . . . . . . . . . . . . . . . . . . . . . Shielding Activations . | . . . . . . . . . . . . . . . . . . . . . . . . . . . . . . . . . Robots Disrupted . | . . . . . . . . . . . . . . . . . . . . . . . . . . . . . . . . . Combat Hostiles . | . . . . . . . . . . . . . . . . . . . . . . . . . . . . . . . . . Robots Corrupted 77 | . 5 . 6 . . . 2 2 1 2 16 1 . . 11 . . . 3 . . 3 . . . 2 . . . . . 23 Combat Hostiles 56 | . . . . . . . . . . 2 15 1 . . 11 . . . 3 . . 3 . . . 1 . . . . . 20 Parts Fried 97 | . 6 . 7 . . . 3 4 . 4 18 . . . 1 . . . 2 . 1 2 . . . 3 2 . . . 3 41 Impact Corruptions 90 | . 7 . 17 . . . 5 5 2 5 43 2 . . 3 . . . . . . . . . . . 1 . . . . . Robots Melted 14 | . . . . . . . . . . . . . . . . . . 1 . . 1 . . . . . . 1 . 1 4 6 Combat Hostiles 12 | . . . . . . . . . . . . . . . . . . 1 . . 1 . . . . . . . . 1 4 5 Parts Melted 40 | 1 . . . . . 1 . . . 1 5 . 2 . . . . 3 . . 4 . . . . . 2 2 . 1 13 5 Heat Transferred 32197 | 444 185 . 1073 296 . 111 666 777 185 . 2100 240 1440 . 170 50 375 1855 . . 1564 687 249 399 990 75 1845 2475 571 1550 4614 7211 Parts Sabotaged 1 | . . . . . . . . . . . . . . . . . . . . . . . . . . . . . . . . 1 Parts Stolen . | . . . . . . . . . . . . . . . . . . . . . . . . . . . . . . . . . Parts Stripped . | . . . . . . . . . . . . . . . . . . . . . . . . . . . . . . . . . Power Chain Reactions 22 | . . . . . . . . . . . . . . . 3 . . . . . 1 3 . . . . 2 . . . . 13 Alert | -11 -10 -10 -9 -9 -9 -8 -8 -8 -8 -8 -6 -6 -6 -6 -6 -5 -5 -5 -5 -5 -5 -4 -4 -4 -4 -3 -3 -3 -3 -2 -2 -2 ------- Run | Yrd Mat Min Mat Min Exi Min Mat Sto Rec Scr Fac Low Low Zio Dee Pro Fac Ext Cet Arc Hub Fac Upp Upp Zhi Pro Res Arm Lab Res Tes Frg Maximum Alert Level 5 | . . . 2 . . . 1 1 . . 3 . . . . . . 3 2 1 3 2 . . . . 1 2 . 1 3 5 Low Security (%) 67 | 100 100 100 52 100 . 100 67 68 100 . 57 . . . . . 100 78 . 41 64 2 . . . . 96 54 . 66 23 . Level 1 13 | . . . 30 . . . 32 31 . . 21 . . . . . . 14 . 58 18 7 . . . . 3 23 . 33 21 . Level 2 12 | . . . 16 . . . . . . . 13 . . . . . . 2 100 . 14 89 . . . . . 21 . . 26 29 Level 3 4 | . . . . . . . . . . . 7 . . . . . . 4 . . 3 . . . . . . . . . 28 35 Level 4 . | . . . . . . . . . . . . . . . . . . . . . . . . . . . . . . . . 12 Level 5 1 | . . . . . . . . . . . . . . . . . . . . . . . . . . . . . . . . 22 High Security . | . . . . . . . . . . . . . . . . . . . . . . . . . . . . . . . . . Max Security . | . . . . . . . . . . . . . . . . . . . . . . . . . . . . . . . . . Peak Influence 2263 | 10 166 123 453 175 . 59 321 303 149 . 785 . . . . . 197 880 545 262 969 619 . . . . 222 556 . 375 921 2263 Initial 510 | . . 36 39 175 . . 11 115 114 . . . . . . . . 90 485 202 40 474 . . . . 21 116 . . 204 510 Average 218 | 1 61 22 198 64 . 6 151 181 31 . 242 . . . . . 76 189 512 195 184 489 . . . . 69 221 . 136 472 1077 Influence Increases 17099 | 45 360 283 1117 170 . 100 573 540 218 . 1289 90 5 . . 30 661 1718 130 179 1372 1115 140 20 15 170 1096 873 . 794 1477 2519 Destroy 0b10 Robot/C 8600 | . 160 200 600 100 . 20 340 280 100 . 700 80 . . . 20 240 740 80 80 480 520 120 20 . 140 560 480 . 420 760 1360 Destroy 0b10 Robot/NC 760 | 45 55 5 90 20 . 10 35 30 10 . 85 . 5 . . . 25 40 5 25 60 10 . . 15 5 55 5 . 25 25 75 Destroy Leader 1674 | . 38 30 152 20 . 10 84 58 . . 160 10 . . . 10 44 116 . . 102 100 20 . . 10 108 82 . 132 184 204 Allied During Kill 714 | . . 33 33 . . . . . 3 . . . . . . . . 482 15 1 . . . . . . . . . 14 . 133 Successful Hack 733 | . 34 . 65 . . . 38 4 12 . 12 . . . . . 43 40 . . 6 79 . . . . 127 104 . 26 93 50 Select Force Hacks 150 | . . . 30 . . . . 30 90 . . . . . . . . . . . . . . . . . . . . . . . Disable Machine 1425 | . . 15 60 . . 60 30 45 . . 105 . . . . . 135 75 30 45 195 255 . . . . 30 30 . . 135 180 Destroy Structure 2158 | . 13 . 27 . . . 31 33 3 . 137 . . . . . 174 90 . 28 454 136 . . . . 216 112 . 177 220 307 Partial Spotted 30 | . . . . . . . . 15 . . . . . . . . . . . . 15 . . . . . . . . . . . Lose Combat Pursuer 855 | . 60 . 60 30 . . 15 45 . . 90 . . . . . . 135 . . 60 15 . . . 15 . 60 . . 60 210 Influence Decreases 14968 | 45 267 273 769 621 . 71 328 521 511 . 505 601 278 . . 30 476 1035 493 567 520 1479 745 20 15 138 906 557 538 431 933 1295 Entered New Map 3886 | . . 57 64 276 . . 18 159 179 . . 291 53 . . . . 95 383 303 77 495 225 . . . 11 106 538 . 159 397 Time Decay 8870 | 45 267 216 634 345 . 71 310 362 322 . 435 310 225 . . 30 342 610 90 214 423 494 520 20 15 138 528 391 . 371 624 518 Lost Part 380 | . . . 10 . . . . . 10 . 70 . . . . . . 30 . 10 10 20 . . . . . . . . . 220 Lost Ally 761 | . . . 61 . . . . . . . . . . . . . . 300 20 40 10 20 . . . . 30 60 . 60 . 160 Purge Threat 1071 | . . . . . . . . . . . . . . . . . 134 . . . . 450 . . . . 337 . . . 150 . Squads Dispatched 103 | . 1 1 4 . . . 1 1 . . 14 . . . . . 4 4 . . 5 14 . . . . 12 6 . 8 21 7 Investigation 29 | . 1 . 3 . . . . 1 . . 5 . . . . . 2 3 . . 1 2 . . . . 5 . . 1 1 4 Extermination 26 | . . . . . . . . . . . 3 . . . . . 2 . . . 2 2 . . . . 6 2 . 3 6 . Reinforcement 25 | . . . 1 . . . 1 . . . 6 . . . . . . 1 . . 2 3 . . . . 1 3 . 1 3 3 Assault 8 | . . 1 . . . . . . . . . . . . . . . . . . . 4 . . . . . 1 . . 2 . Garrison 6 | . . . . . . . . . . . . . . . . . . . . . . 3 . . . . . . . . 3 . Intercept 9 | . . . . . . . . . . . . . . . . . . . . . . . . . . . . . . 3 6 . Searches Triggered . | . . . . . . . . . . . . . . . . . . . . . . . . . . . . . . . . . Construction Impeded 2 | . . . 1 . . . . . . . 1 . . . . . . . . . . . . . . . . . . . . . Haulers Reinforced 2 | . . . . . . . . . . . 1 . . . . . . . . . 1 . . . . . . . . . . . Active Scanning Responses . | . . . . . . . . . . . . . . . . . . . . . . . . . . . . . . . . . Cargo Convoy Interrupts 1 | . . . . . . . . . . . 1 . . . . . . . . . . . . . . . . . . . . . Stealth | -11 -10 -10 -9 -9 -9 -8 -8 -8 -8 -8 -6 -6 -6 -6 -6 -5 -5 -5 -5 -5 -5 -4 -4 -4 -4 -3 -3 -3 -3 -2 -2 -2 --------- Run | Yrd Mat Min Mat Min Exi Min Mat Sto Rec Scr Fac Low Low Zio Dee Pro Fac Ext Cet Arc Hub Fac Upp Upp Zhi Pro Res Arm Lab Res Tes Frg Distress Signals 25 | . 3 1 2 . . . 3 3 . . . . . . . . . 4 1 . 2 . . . . . 1 . . . 2 3 Communications Jammed 414 | . . . . . . . . . . . 1 . . . . . . 4 . . 274 2 . . . . 5 1 . 38 31 58 Distress Signals 413 | . . . . . . . . . . . 1 . . . . . . 4 . . 274 1 . . . . 5 1 . 38 31 58 Times Spotted 700 | . 15 9 45 6 . 1 23 18 5 19 46 5 . . 68 1 15 50 4 26 40 31 4 2 . 7 31 29 1 22 42 135 Peak Tracking Total 37 | . 3 3 5 4 . 1 5 4 1 8 7 4 . . 37 1 5 9 5 2 7 6 4 1 . 5 4 6 1 4 5 29 Tactical Retreats 49 | . 3 . 3 1 . . 1 2 . 3 4 . . . 9 . . 4 . . 4 1 . . . 1 . 2 . . 3 8 Traps | -11 -10 -10 -9 -9 -9 -8 -8 -8 -8 -8 -6 -6 -6 -6 -6 -5 -5 -5 -5 -5 -5 -4 -4 -4 -4 -3 -3 -3 -3 -2 -2 -2 ------- Run | Yrd Mat Min Mat Min Exi Min Mat Sto Rec Scr Fac Low Low Zio Dee Pro Fac Ext Cet Arc Hub Fac Upp Upp Zhi Pro Res Arm Lab Res Tes Frg Traps Triggered 16 | . 3 . 1 . . . . . . . . . . . . . . 5 . . . 1 . . . . . 3 . . . 3 Indirectly 1 | . . . . . . . . . . . . . . . . . . . . . . 1 . . . . . . . . . . Trap Hack Attempts . | . . . . . . . . . . . . . . . . . . . . . . . . . . . . . . . . . Triggered . | . . . . . . . . . . . . . . . . . . . . . . . . . . . . . . . . . Disarmed . | . . . . . . . . . . . . . . . . . . . . . . . . . . . . . . . . . Reprogrammed . | . . . . . . . . . . . . . . . . . . . . . . . . . . . . . . . . . Reused . | . . . . . . . . . . . . . . . . . . . . . . . . . . . . . . . . . Traps Extracted . | . . . . . . . . . . . . . . . . . . . . . . . . . . . . . . . . . Installed . | . . . . . . . . . . . . . . . . . . . . . . . . . . . . . . . . . Triggered . | . . . . . . . . . . . . . . . . . . . . . . . . . . . . . . . . . Most Traps Carried 1 | . . . . 1 1 . . . . . . . . . . . . . . . . . . . . . . . . . . . Machines | -11 -10 -10 -9 -9 -9 -8 -8 -8 -8 -8 -6 -6 -6 -6 -6 -5 -5 -5 -5 -5 -5 -4 -4 -4 -4 -3 -3 -3 -3 -2 -2 -2 ---------- Run | Yrd Mat Min Mat Min Exi Min Mat Sto Rec Scr Fac Low Low Zio Dee Pro Fac Ext Cet Arc Hub Fac Upp Upp Zhi Pro Res Arm Lab Res Tes Frg Machines Disabled 122 | . . 1 5 . . 4 2 3 . 11 7 . . 3 2 . 9 6 2 3 13 17 . 1 . . 2 2 5 . 11 13 Max in Single Turn 12 | . . 1 2 . . 1 1 1 . 1 3 . . 1 1 . 4 1 1 1 5 12 . 1 . . 1 1 2 . 1 1 Garrison Access 1 | . . . . . . . . . . . . . . . . . . . . . . . . . . . . . . 1 . . Network Hub 3 | . . . . . . . . . . . . . . . . . . . . . 3 . . . . . . . . . . . Machines Repaired . | . . . . . . . . . . . . . . . . . . . . . . . . . . . . . . . . . Machines Dismantled . | . . . . . . . . . . . . . . . . . . . . . . . . . . . . . . . . . Machines Sabotaged . | . . . . . . . . . . . . . . . . . . . . . . . . . . . . . . . . . Overloaded Fab Kills . | . . . . . . . . . . . . . . . . . . . . . . . . . . . . . . . . . Hacking | -11 -10 -10 -9 -9 -9 -8 -8 -8 -8 -8 -6 -6 -6 -6 -6 -5 -5 -5 -5 -5 -5 -4 -4 -4 -4 -3 -3 -3 -3 -2 -2 -2 --------- Run | Yrd Mat Min Mat Min Exi Min Mat Sto Rec Scr Fac Low Low Zio Dee Pro Fac Ext Cet Arc Hub Fac Upp Upp Zhi Pro Res Arm Lab Res Tes Frg Machines Accessed 154 | . 9 1 17 . 1 . 5 6 10 10 14 1 . 1 . . 9 15 1 . 3 7 . . 4 . 15 4 . 6 9 6 Terminals 76 | . 7 . 12 . . . 3 5 6 . 4 . . . . . 3 14 1 . 3 3 . . . . 5 2 . 2 5 1 Fabricators 12 | . . . . . . . . . . . 2 . . . . . 3 . . . . 1 . . . . 2 2 . . 2 . Repair Stations 7 | . . . 1 . . . 1 . . . 1 . . . . . . . . . . . . . . . 2 . . . 1 1 Recycling Units 26 | . 2 . 2 . . . . 1 4 . 5 . . . . . 2 1 . . . 1 . . . . 4 . . 1 . 3 Scanalyzers 11 | . . . 2 . . . 1 . . . 1 . . . . . 1 . . . . 2 . . . . 1 . . 1 1 1 Garrison Access 4 | . . . . . . . . . . . 1 . . . . . . . . . . . . . . . 1 . . 2 . . Total Hacks 560 | . 28 1 72 . 1 . 17 12 36 74 27 1 . 2 . . 27 23 1 . 11 36 . . 17 . 79 26 . 17 37 15 Successful 333 | . 12 1 42 . 1 . 13 7 20 74 8 1 . 2 . . 16 13 . . 6 18 . . 17 . 38 15 . 7 15 7 Failed 222 | . 16 . 29 . . . 3 5 16 . 19 . . . . . 10 10 1 . 5 18 . . . . 41 11 . 10 21 7 Catastrophic 38 | . 3 . 4 . . . . 1 . . 5 . . . . . 1 . 1 . 1 4 . . . . 7 1 . 3 5 2 Database Lockouts 5 | . . . 1 . . . 1 . . . . . . . . . 1 . . . . . . . . . . . . . 1 1 Manual 231 | . 25 . 33 . . . 8 5 25 . 16 . . 1 . . 16 14 . . 5 11 . . . . 23 15 . 8 18 8 Terminals 278 | . 23 . 52 . . . 9 9 25 . 5 . . . . . 9 22 1 . 11 22 . . . . 36 17 . 12 20 5 Fabricators 50 | . . . . . . . . . . . 3 . . . . . 9 . . . . 8 . . . . 11 9 . . 10 . Repair Stations 23 | . . . 4 . . . 2 . . . 4 . . . . . . . . . . . . . . . 11 . . . 1 1 Recycling Units 53 | . 5 . 4 . . . . 3 11 . 10 . . . . . 4 1 . . . 1 . . . . 6 . . 1 . 7 Scanalyzers 54 | . . . 12 . . . 6 . . . 4 . . . . . 5 . . . . 5 . . . . 12 . . 2 6 2 Garrison Access 6 | . . . . . . . . . . . 1 . . . . . . . . . . . . . . . 3 . . 2 . . Terminal Hacks 162 | . 3 1 12 . 1 . 1 4 2 74 . 1 . 2 . . 1 7 . . 3 8 . . 17 . 10 6 . 3 4 2 Record 79 | . . . . . 1 . . . . 73 . . . . . . . . . . . . . . 5 . . . . . . . Part Schematic 8 | . 1 . . . . . . . . . . . . 2 . . . . . . . . . . 4 . . . . . 1 . Robot Schematic 1 | . . . . . . . . . 1 . . . . . . . . . . . . . . . . . . . . . . . Robot Analysis 11 | . 2 . 2 . . . . . . . . . . . . . . . . . . 1 . . 4 . 2 . . . . . Prototype ID Bank 7 | . . . 2 . . . . . . . . . . . . . . . . . . . . . 4 . 1 . . . . . Open Door 13 | . . 1 . . . . . 4 . . . 1 . . . . . 7 . . . . . . . . . . . . . . Level Access Points 1 | . . . . . . . . . . . . . . . . . . . . . . . . . . . . . . . . 1 Branch Access Points 3 | . . . 1 . . . . . . . . . . . . . . . . . . 1 . . . . 1 . . . . . Emergency Access Points 1 | . . . 1 . . . . . . . . . . . . . . . . . . . . . . . . . . . . . Machine Index 1 | . . . . . . . . . . . . . . . . . . . . . . . . . . . . . . . 1 . Terminal Index 3 | . . . . . . . . . . . . . . . . . . . . . . . . . . . 1 1 . 1 . . Recycling Unit Index 1 | . . . . . . . . . . . . . . . . . . . . . . . . . . . . 1 . . . . Alert Level 4 | . . . 1 . . . . . . . . . . . . . . . . . 1 1 . . . . 1 . . . . . Unreport Threat 8 | . . . . . . . . . . . . . . . . . 1 . . . . 3 . . . . 3 . . . 1 . Locate Traps 7 | . . . 2 . . . . . . . . . . . . . . . . . . 1 . . . . 1 1 . . 1 1 Maintenance Status 1 | . . . . . . . . . . . . . . . . . . . . . . . . . . . . . . 1 . . Recall Extermination 1 | . . . . . . . . . . . . . . . . . . . . . 1 . . . . . . . . . . . Hauler Manifests 5 | . . . 1 . . . 1 . 1 . . . . . . . . . . . . . . . . . . 1 . 1 . . Registered Components 3 | . . . 1 . . . . . . . . . . . . . . . . . . 1 . . . . . 1 . . . . Registered Prototypes 1 | . . . . . . . . . . . . . . . . . . . . . . . . . . . . 1 . . . . Zone Layout 2 | . . . 1 . . . . . . . . . . . . . . . . . 1 . . . . . . . . . . . Proto ID Catalog 1 | . . . . . . . . . . 1 . . . . . . . . . . . . . . . . . . . . . . Fabricator Hacks 15 | . . . . . . . . . . . 1 . . . . . 2 . . . . 2 . . . . 4 2 . . 4 . Network Status 4 | . . . . . . . . . . . . . . . . . . . . . . 1 . . . . 1 1 . . 1 . Load Schematic 7 | . . . . . . . . . . . 1 . . . . . 1 . . . . 1 . . . . 2 . . . 2 . Build 4 | . . . . . . . . . . . . . . . . . 1 . . . . . . . . . 1 1 . . 1 . Repair Station Hacks 12 | . . . 4 . . . 2 . . . 1 . . . . . . . . . . . . . . . 5 . . . . . Scan Component 7 | . . . 2 . . . 1 . . . 1 . . . . . . . . . . . . . . . 3 . . . . . Repair 5 | . . . 2 . . . 1 . . . . . . . . . . . . . . . . . . . 2 . . . . . Recycling Unit Hacks 6 | . 2 . . . . . . . 4 . . . . . . . . . . . . . . . . . . . . . . . Retrieve Components 6 | . 2 . . . . . . . 4 . . . . . . . . . . . . . . . . . . . . . . . Scanalyzer 24 | . . . 8 . . . 5 . . . 1 . . . . . 3 . . . . 2 . . . . 3 . . . 1 1 Insert Component 9 | . . . 3 . . . 2 . . . . . . . . . 1 . . . . 1 . . . . 2 . . . . . Analyze 5 | . . . 1 . . . 2 . . . . . . . . . 1 . . . . . . . . . 1 . . . . . Retrieve Study 10 | . . . 4 . . . 1 . . . 1 . . . . . 1 . . . . 1 . . . . . . . . 1 1 Garrison Access Hacks 1 | . . . . . . . . . . . . . . . . . . . . . . . . . . . . . . 1 . . Seal Access 1 | . . . . . . . . . . . . . . . . . . . . . . . . . . . . . . 1 . . Unauthorized Hacks 113 | . 7 . 18 . . . 5 3 14 . 5 . . . . . 10 6 . . 3 6 . . . . 16 7 . 3 6 4 Terminals 69 | . 7 . 17 . . . 5 2 10 . 1 . . . . . 3 5 . . 3 4 . . . . 5 3 . 2 2 . Track 3 | . . . . . . . . . . . . . . . . . . . . . 1 . . . . . 1 1 . . . . Assimilate 3 | . . . 3 . . . . . . . . . . . . . . . . . . . . . . . . . . . . . Botnet 24 | . 1 . 3 . . . 1 1 4 . 1 . . . . . 2 1 . . 1 2 . . . . 2 1 . 2 2 . Disrupt 1 | . . . . . . . . . . . . . . . . . 1 . . . . . . . . . . . . . . . Operators 6 | . 1 . 1 . . . 1 . . . . . . . . . . . . . 1 . . . . . 1 1 . . . . Skim 32 | . 5 . 10 . . . 3 1 6 . . . . . . . . 4 . . . 2 . . . . 1 . . . . . Fabricators 18 | . . . . . . . . . . . . . . . . . 5 . . . . 1 . . . . 6 4 . . 2 . Report 3 | . . . . . . . . . . . . . . . . . 1 . . . . . . . . . 1 1 . . . . Prioritize 3 | . . . . . . . . . . . . . . . . . 1 . . . . . . . . . 1 . . . 1 . Liberate 5 | . . . . . . . . . . . . . . . . . 2 . . . . . . . . . 1 2 . . . . Haulers 4 | . . . . . . . . . . . . . . . . . 1 . . . . . . . . . 2 1 . . . . Recompile 3 | . . . . . . . . . . . . . . . . . . . . . . 1 . . . . 1 . . . 1 . Repair Stations 3 | . . . . . . . . . . . . . . . . . . . . . . . . . . . 1 . . . 1 1 Mechanics 3 | . . . . . . . . . . . . . . . . . . . . . . . . . . . 1 . . . 1 1 Recycling Units 22 | . . . 1 . . . . 1 4 . 4 . . . . . 2 1 . . . 1 . . . . 4 . . 1 . 3 Reject 1 | . . . . . . . . . 1 . . . . . . . . . . . . . . . . . . . . . . . Tunnel 5 | . . . 1 . . . . 1 3 . . . . . . . . . . . . . . . . . . . . . . . Fedlink 14 | . . . . . . . . . . . 4 . . . . . 2 1 . . . 1 . . . . 4 . . 1 . 1 Scrapoids 1 | . . . . . . . . . . . . . . . . . . . . . . . . . . . . . . . . 1 Scraphulk 1 | . . . . . . . . . . . . . . . . . . . . . . . . . . . . . . . . 1 Scanalyzers 1 | . . . . . . . . . . . . . . . . . . . . . . . . . . . . . . . 1 . Researchers 1 | . . . . . . . . . . . . . . . . . . . . . . . . . . . . . . . 1 . Garrison Access . | . . . . . . . . . . . . . . . . . . . . . . . . . . . . . . . . . Data Cores Recovered 2 | . . . 1 . . . . . . . . . . . . . 1 . . . . . . . . . . . . . . . Used 1 | . . . . . . . . . . . . . . . . . 1 . . . . . . . . . . . . . . . Hacking Detections 98 | . 8 . 16 . . . 4 6 7 . 11 . . . . . 7 9 1 . 3 5 . . . . 7 2 . 4 6 2 Full Trace Events 7 | . . . 1 . . . . 1 1 . 1 . . . . . . 2 . . 1 . . . . . . . . . . . Feedback Events . | . . . . . . . . . . . . . . . . . . . . . . . . . . . . . . . . . Feedback Blocked . | . . . . . . . . . . . . . . . . . . . . . . . . . . . . . . . . . Robot Schematics Acquired 4 | . . . . . . . . . 1 . . . . . . . . . . . . . . . . . . . . . 3 . Robots Built . | . . . . . . . . . . . . . . . . . . . . . . . . . . . . . . . . . Authchips . | . . . . . . . . . . . . . . . . . . . . . . . . . . . . . . . . . Time . | . . . . . . . . . . . . . . . . . . . . . . . . . . . . . . . . . Total Robot Build Rating . | . . . . . . . . . . . . . . . . . . . . . . . . . . . . . . . . . Part Schematics Acquired 20 | . 1 . 1 . . . 2 . . . . . . 2 . . 1 . . . . . . . 4 1 . . . . 8 . Parts Built 6 | . . . . . . . . . . . . . . . . . 2 . . . . . . . . . 1 2 . . 1 . Authchips 2 | . . . . . . . . . . . . . . . . . . . . . . . . . . . 1 . . . 1 . Time 252 | . . . . . . . . . . . . . . . . . 58 . . . . . . . . . 93 46 . . 55 . Total Part Build Rating 48 | . . . . . . . . . . . . . . . . . 14 . . . . . . . . . 7 18 . . 9 . Part Studies Acquired 9 | . . . 4 . . . . . . . 1 . . . . . 1 . . . . 1 . . . . . . . . 1 1 Parts Repaired 5 | . . . 2 . . . 1 . . . . . . . . . . . . . . . . . . . 2 . . . . . Time 248 | . . . 58 . . . 32 . . . . . . . . . . . . . . . . . . . 158 . . . . . Parts Recycled . | . . . . . . . . . . . . . . . . . . . . . . . . . . . . . . . . . Recycled Matter . | . . . . . . . . . . . . . . . . . . . . . . . . . . . . . . . . . Retrieved Matter . | . . . . . . . . . . . . . . . . . . . . . . . . . . . . . . . . . Retrieved Components 6 | . 4 . . . . . . . 2 . . . . . . . . . . . . . . . . . . . . . . . Parts Scanalyzed 6 | . . . 1 . . . 2 . . . . . . . . . 1 . . . . 1 . . . . 1 . . . . . Part Schematics Acquired 4 | . . . 1 . . . 2 . . . . . . . . . 1 . . . . . . . . . . . . . . . Parts Damaged 3 | . . . . . . . . . . . . . . . . . 1 . . . . 1 . . . . 1 . . . . . Bothacking | -11 -10 -10 -9 -9 -9 -8 -8 -8 -8 -8 -6 -6 -6 -6 -6 -5 -5 -5 -5 -5 -5 -4 -4 -4 -4 -3 -3 -3 -3 -2 -2 -2 ------------ Run | Yrd Mat Min Mat Min Exi Min Mat Sto Rec Scr Fac Low Low Zio Dee Pro Fac Ext Cet Arc Hub Fac Upp Upp Zhi Pro Res Arm Lab Res Tes Frg Used RIF Installer . | . . . . . . . . . . . . . . . . . . . . . . . . . . . . . . . . . Robots Hacked 19 | . . . . . 4 . 1 . 3 1 3 1 . 2 . . 1 1 . . 1 . . . . . . . . . . 1 Non-combat 9 | . . . . . 3 . 1 . 2 . 1 . . . . . 1 . . . . . . . . . . . . . . 1 Combat 9 | . . . . . 1 . . . 1 1 2 1 . 2 . . . 1 . . . . . . . . . . . . . . Robot Hacks Applied 18 | . . . . . 4 . 1 . 3 1 3 1 . 2 . . 1 1 . . . . . . . . . . . . . 1 parse_system 16 | . . . . . 4 . 1 . 3 1 2 1 . 2 . . . 1 . . . . . . . . . . . . . 1 find_recycling 2 | . . . . . . . . . . . 1 . . . . . 1 . . . . . . . . . . . . . . . Manual 2 | . . . . . . . . . . . 1 . . . . . . . . . 1 . . . . . . . . . . . Relay Couplers Released . | . . . . . . . . . . . . . . . . . . . . . . . . . . . . . . . . . Fabnet Peak Effective % . | . . . . . . . . . . . . . . . . . . . . . . . . . . . . . . . . . Robots Rewired 19 | . . . . . . . . . 8 . . . . . . . . 8 . . . . . . . . . 3 . . . . Allies Hacked 2 | . . . . . . . . . . . . . . . . . . 2 . . . . . . . . . . . . . . Hacks Repelled . | . . . . . . . . . . . . . . . . . . . . . . . . . . . . . . . . . Allies | -11 -10 -10 -9 -9 -9 -8 -8 -8 -8 -8 -6 -6 -6 -6 -6 -5 -5 -5 -5 -5 -5 -4 -4 -4 -4 -3 -3 -3 -3 -2 -2 -2 -------- Run | Yrd Mat Min Mat Min Exi Min Mat Sto Rec Scr Fac Low Low Zio Dee Pro Fac Ext Cet Arc Hub Fac Upp Upp Zhi Pro Res Arm Lab Res Tes Frg Total Allies 53 | . . 6 2 . . . . . 8 . . . . 2 . . . 23 . . . . . . . . . 3 1 2 . 6 Largest Group 16 | . . 6 5 . . . . . 8 8 . . . 2 2 . . 16 3 2 . . . . . . . 3 1 1 . 6 Highest-Rated Group 625 | . . 110 102 . . . . . 121 121 . . . 192 192 . . 625 84 56 . . . . . . . 126 234 234 . 459 Highest-Rated Ally 234 | . . 31 31 . . . . . 27 27 . . . 96 96 . . 159 31 31 . . . . . . . 42 234 234 . 139 Total Orders 556 | . . . . . . . 1 . 6 11 4 2 2 . . . 67 9 . . 42 36 6 2 . 1 149 38 . 55 74 51 STAY 71 | . . . . . . . . . 3 3 . . . . . . 8 2 . . 10 4 . . . . 17 6 . 2 8 8 ROAM 3 | . . . . . . . . . . . . . . . . . . . . . . . . . . . . 1 . . 2 . FOLLOW 72 | . . . . . . . . . 2 5 . . . . . . 12 2 . . 2 3 1 . . . 17 4 . 8 8 8 AID 4 | . . . . . . . . . . 2 . . . . . . . . . . . . . . . . . 2 . . . . PICKUP 1 | . . . . . . . . . . 1 . . . . . . . . . . . . . . . . . . . . . . COLLECT 1 | . . . . . . . . . 1 . . . . . . . . . . . . . . . . . . . . . . . EXPLORE 109 | . . . . . . . . . . . . . . . . . 15 3 . . 6 11 . . . . 28 2 . 15 17 12 RETURN 295 | . . . . . . . 1 . . . 4 2 2 . . . 32 2 . . 24 18 5 2 . 1 87 23 . 30 39 23 Ally Attacks 367 | . . 24 28 . . . . . 1 13 . . . . 36 . . 155 12 9 . . . . . . . . . 4 . 85 Total Damage 7699 | . . 363 327 . . . . . 14 252 . . . . 786 . . 2701 235 185 . . . . . . . . . 364 . 2472 Kills 55 | . . 5 9 . . . . . 1 3 . . . . 3 . . 21 1 1 . . . . . . . . . 4 . 7 Allies Corrupted 3 | . . . . . . . . . . . . . . . . . . 1 . . . . . . . . . . . 1 . 1 Allies Melted 7 | . . . . . . . . . . 5 . . . . 1 . . . . . . 1 . . . . . . . . . . Intel | -11 -10 -10 -9 -9 -9 -8 -8 -8 -8 -8 -6 -6 -6 -6 -6 -5 -5 -5 -5 -5 -5 -4 -4 -4 -4 -3 -3 -3 -3 -2 -2 -2 ------- Run | Yrd Mat Min Mat Min Exi Min Mat Sto Rec Scr Fac Low Low Zio Dee Pro Fac Ext Cet Arc Hub Fac Upp Upp Zhi Pro Res Arm Lab Res Tes Frg Active Infowar (turns) 36149 | 224 1945 1301 1567 858 484 895 538 224 . 1209 1426 688 539 1380 766 1266 1344 1631 . 72 1504 1108 1765 1823 755 2126 2578 1162 1669 951 1623 728 Optics 83 | . . . . . . . . . . . . . . . . . . . . . . . . . . . . . 83 . . . Sensors 256 | . . . . . . . . . . . . . . 242 14 . . . . . . . . . . . . . . . . . Structural 13514 | . . . . . . . . . . 1209 636 5 401 1138 . 823 692 . . 72 407 246 572 1341 616 1968 1626 541 . 445 578 198 Seismic 8038 | 224 1945 1301 1567 858 484 895 538 224 . . . . . . . . . . . . . 2 . . . . . . . . . . Machine Analysis 237 | . . . . . . . . . . . 237 . . . . . . . . . . . . . . . . . . . . . Cloaking 3158 | . . . . . . . . . . . . . . . . . . . . . . . . . . . . . 1183 543 1237 195 Jamming 21460 | . . . . . . . . . . . 553 688 168 . 752 443 1344 1631 . . 1377 1078 1765 1819 755 2126 2578 1162 403 704 1526 588 Robot Analysis Total 11 | . 2 . 2 . . . . . . . . . . . . . . . . . . 1 . . 4 . 2 . . . . . Derelict Logs Recovered 12 | . . 3 . 1 . . . . . . . 1 2 1 . 1 . . . . . . 2 1 . . . . . . . . Drone Launches 313 | . . . . . . . 1 . . . 4 2 2 . . 1 32 . . 1 20 27 6 2 . 1 99 25 . 27 33 30 Drone Recoveries 296 | . . . . . . . 1 . . . 4 2 2 . . . 32 1 . . 17 24 5 2 . 1 96 25 . 26 34 24 Exploration | -11 -10 -10 -9 -9 -9 -8 -8 -8 -8 -8 -6 -6 -6 -6 -6 -5 -5 -5 -5 -5 -5 -4 -4 -4 -4 -3 -3 -3 -3 -2 -2 -2 ------------- Run | Yrd Mat Min Mat Min Exi Min Mat Sto Rec Scr Fac Low Low Zio Dee Pro Fac Ext Cet Arc Hub Fac Upp Upp Zhi Pro Res Arm Lab Res Tes Frg Turns Passed 48814 | 329 2038 1302 2304 952 559 903 680 833 1810 3955 1790 698 541 1383 3458 1266 1344 1988 193 448 1649 1306 2260 1823 755 2127 2578 1167 1790 1035 2123 1427 Spaces Moved 22695 | 160 796 660 1219 656 406 663 369 392 1110 2776 805 371 277 935 1702 569 567 876 86 118 592 565 776 747 293 789 1029 400 264 446 761 520 Core 22 | 4 . . . . . . . . . . . . . . . . . . . . . . . . . . . . . . . 18 Treads 5132 | 156 796 660 215 1 . . 4 20 . . 11 . . . . . . . . 48 . . 2 12 . . 882 400 264 446 761 454 Legs 5366 | . . . . . . . . . . . . . . . 697 569 567 876 26 . . . 757 735 293 789 57 . . . . . Wheels 12175 | . . . 1004 655 406 663 365 372 1110 2776 794 371 277 935 1005 . . . 60 70 592 565 17 . . . 90 . . . . 48 Hover . | . . . . . . . . . . . . . . . . . . . . . . . . . . . . . . . . . Flight . | . . . . . . . . . . . . . . . . . . . . . . . . . . . . . . . . . Fastest Speed 50 | 50 160 160 113 113 85 130 130 130 130 110 145 150 160 135 135 176 179 176 165 150 165 180 180 210 240 240 152 163 163 151 151 50 Average Speed 161 | 157 160 160 137 131 127 130 131 135 138 124 162 151 173 144 163 220 179 176 169 164 170 189 209 231 240 240 169 170 167 155 151 149 Slowest Speed 270 | 160 160 160 240 240 130 130 240 242 140 140 260 225 175 175 270 222 179 179 222 240 180 195 240 240 240 240 249 249 250 163 232 227 Overloaded Moves . | . . . . . . . . . . . . . . . . . . . . . . . . . . . . . . . . . Propulsion Burnouts . | . . . . . . . . . . . . . . . . . . . . . . . . . . . . . . . . . Robots Hopped 2 | . . . . . . . . . . . . . . . . . . . . . . . . . . . . . 2 . . . Potential Cave-ins 17 | . . . . . . . . . . 2 . . . . . . . . . . . . . . . . . 2 . . 5 8 Cave-ins Triggered . | . . . . . . . . . . . . . . . . . . . . . . . . . . . . . . . . . Teleports 2 | . . . . . . . . . . . . . . . . . . . . . . . . . . . . 1 . . . 1 Exploration Rate (%) 65 | 8 93 99 89 98 66 94 37 64 97 93 30 54 42 87 73 77 27 84 52 72 73 22 80 87 62 88 51 34 94 21 88 33 Regions Visited 32 Branch Regions 24 Pre-discovered Areas 26 | . . . 4 1 1 . . 1 6 4 1 . . 3 . . . . . . . . 2 . 3 . . . . . . . Known Exits Taken 23 | . . 1 1 1 . 1 1 1 1 1 1 1 1 . 1 1 1 . . 1 . 1 1 . 1 1 1 1 1 1 . . Unknown Exits Taken 9 | 1 1 . . . 1 . . . . . . . . 1 . . . 1 1 . 1 . . 1 . . . . . . 1 . Scrap Searched 29 | . . 1 . 2 . 2 . . . 6 . 4 1 3 . 3 . . . . . . . 4 . 3 . . . . . . Spaces Dug 498 | . 12 . 16 . . . 11 4 . 33 79 9 6 . 1 . 46 7 . . 16 53 23 4 . 7 64 16 . 22 39 30 Terrain Destroyed 1627 | . 13 . 17 . . . 29 29 2 75 160 13 6 . 80 4 99 38 . 22 396 92 42 7 . 56 111 66 . 58 93 119 Melee 35 | . 2 . 12 . . . 3 . . . 3 1 . . . . . . . . 9 5 . . . . . . . . . . Projectile 638 | . 11 . 5 . . . 4 14 2 2 20 . . . 29 4 38 38 . 22 63 14 8 7 . 13 98 59 . 58 91 38 AOE 832 | . . . . . . . 22 15 . 41 93 4 . . 50 . 61 . . . 319 67 34 . . 43 13 . . . . 70 Terrain Rammed . | . . . . . . . . . . . . . . . . . . . . . . . . . . . . . . . . . Walls Destroyed . | . . . . . . . . . . . . . . . . . . . . . . . . . . . . . . . . . Machines Disabled . | . . . . . . . . . . . . . . . . . . . . . . . . . . . . . . . . . Actions | -11 -10 -10 -9 -9 -9 -8 -8 -8 -8 -8 -6 -6 -6 -6 -6 -5 -5 -5 -5 -5 -5 -4 -4 -4 -4 -3 -3 -3 -3 -2 -2 -2 --------- Run | Yrd Mat Min Mat Min Exi Min Mat Sto Rec Scr Fac Low Low Zio Dee Pro Fac Ext Cet Arc Hub Fac Upp Upp Zhi Pro Res Arm Lab Res Tes Frg Total 32218 | 194 1446 876 1639 716 444 691 475 593 1349 3257 1116 491 316 967 2229 573 828 1200 120 290 992 701 1412 820 330 996 1675 747 1585 674 1503 973 Wait 5899 | . 541 190 181 26 . 4 11 92 158 401 42 88 15 10 225 1 184 151 3 69 224 26 549 35 13 166 422 198 1256 112 419 87 Move 22659 | 159 795 659 1218 655 405 662 368 391 1109 2775 804 370 276 934 1701 568 566 875 85 117 591 564 775 746 292 788 1028 399 259 445 760 520 Hop 2 | . . . . . . . . . . . . . . . . . . . . . . . . . . . . . 2 . . . Pick Up 344 | 8 16 2 34 3 22 4 7 12 4 20 21 1 2 2 46 . 9 5 1 7 2 8 26 4 2 5 12 5 17 4 18 15 Fast Attach 140 | 7 2 . 3 . 2 . . 2 4 4 13 3 . 2 8 . . 7 5 9 6 6 3 4 4 . 12 7 6 5 11 5 Attach 140 | . . 1 4 . 1 . 4 1 2 2 17 1 1 2 25 . 2 . 1 3 1 9 4 1 . 1 6 2 3 2 13 31 Detach 62 | . 2 . . . . . . . . . 6 1 . . 11 . . 1 . 1 5 3 3 . . . 4 1 1 1 12 10 Swap 772 | . 22 2 75 12 5 7 35 32 7 13 62 15 8 7 17 2 20 21 4 2 36 29 7 10 5 13 67 45 5 38 81 68 Drop 418 | . 14 2 28 4 5 4 8 14 9 29 23 3 2 5 53 . 6 12 9 14 8 8 36 8 5 6 25 10 18 7 32 11 Fire 1440 | 20 42 13 72 16 . 10 33 42 7 11 108 6 . 5 142 2 41 58 11 68 87 43 9 12 . 17 97 53 18 60 156 181 Melee 202 | . 10 . 24 . 4 . 9 6 18 2 19 3 12 . 1 . . 5 1 . 29 5 . . 9 . 1 7 . . . 37 Ram . | . . . . . . . . . . . . . . . . . . . . . . . . . . . . . . . . . Kick 3 | . . . . . . . . . . . . . . . . . . 3 . . . . . . . . . . . . . . Crush 17 | . 2 7 . . . . . 1 . . 1 . . . . . . . . . 3 . . . . . 1 . . . 1 1 Escape Stasis 24 | . . . . . . . . . . . . . . . . . . 17 . . . . . . . . . . . . . 7 Rewire 96 | . . . . . . . . . 31 . . . . . . . . 45 . . . . . . . . . 20 . . . . Trap . | . . . . . . . . . . . . . . . . . . . . . . . . . . . . . . . . . Miscellaneous . | . . . . . . . . . . . . . . . . . . . . . . . . . . . . . . . . . Route ------- -11/Scrapyard -10/Materials (discovered 5 exits: *Mat x3 / *Min / Sub) -10/Mines (discovered 3 exits: *Mat x2 / Sub) -9/Materials (discovered 4 exits: *Mat x3 / *Min) -9/Mines (discovered 3 exits: *Mat x2 / *Exi) -9/Exiles (discovered 2 exits: [*Min x2]) -8/Mines (discovered 2 exits: *Mat x2) -8/Materials (discovered 2 exits: *Fac / *Sto) -8/Storage (discovered 2 exits: *Fac / *Rec) -8/Recycling (discovered 2 exits: *Fac / *Scr) -8/Scraptown (discovered 2 exits: *Fac x2) -6/Factory (discovered 5 exits: *Fac x4 / *Low) -6/Lower Caves -6/Lower Caves -6/Zion (discovered 2 exits: [*Dee] / *Pro) -6/Deep Caves -5/Proximity Caves -5/Factory (discovered 4 exits: *Fac / *Upp x2 / *Ext) -5/Extension (discovered 2 exits: *Fac / *Cet) -5/Cetus -5/Archives (discovered 2 exits: *Fac / *Hub) -5/Hub_04(d) (discovered 3 exits: *Fac x3) -4/Factory (discovered 2 exits: *Upp x2) -4/Upper Caves -4/Upper Caves (discovered 2 exits: *Res / *Zhi) -4/Zhirov -3/Proximity Caves -3/Research (discovered 5 exits: *Res x2 / *Arm / Qua x2) -3/Armory -3/Lab -2/Research -2/Testing (discovered 3 exits: *Acc / [*Sec] / *Frg) -2/Protoforge (discovered 1 exit: Acc) History --------- Turn | Location | Event 5 | -11/Scrapyard | Discovered new exit (range 15) 330 | -11/Scrapyard | Entered Materials 331 | -10/Materials | Build established: Mutant 506 | -10/Materials | Discovered new exit (range 13) 1004 | -10/Materials | Discovered new exit (range 3) 1248 | -10/Materials | Discovered new exit (range 5) 1481 | -10/Materials | Learned location of 2 exits from Subcaves 1520 | -10/Materials | Learned location of 2 exits from Subcaves 1551 | -10/Materials | Learned Storage security intel 1573 | -10/Materials | Learned 4 Recycling zone layouts 1585 | -10/Materials | Learned location of 2 exits from Mines 1587 | -10/Materials | Identified exit to Materials 1587 | -10/Materials | Identified exit to Subcaves 1588 | -10/Materials | Learned location of 2 exits from Mines 1595 | -10/Materials | Learned location of 1 exit from Recycling 2368 | -10/Materials | Entered Mines 2596 | -10/Mines | Learned 4 Materials zone layouts 2720 | -10/Mines | Found a damaged Exp. Sensor Array with a note attached 2724 | -10/Mines | Found Prototype Device 2788 | -10/Mines | Found the Drone Emporium 2797 | -10/Mines | Found Prototype Device 2797 | -10/Mines | Identified Sensor Drone Bay 3409 | -10/Mines | Learned Materials interactive machine intel 3450 | -10/Mines | Assisted by bots powering up and referring to "LRC-V3" 3511 | -10/Mines | Met a Derelict testing a Signal Generator 3670 | -10/Mines | Entered Materials 3670 | -9/Materials | Accompanied by 5 allies 3670 | -9/Materials | Evolved 2 slots: Propulsion x1, Weapon x1 3671 | -9/Materials | Identified exit to Materials 3672 | -9/Materials | Loaded intel: 18 interactive machine locations 3675 | -9/Materials | Led the pair of lost Derelicts to an unsafe place 3898 | -9/Materials | Lost 3 allies 4057 | -9/Materials | Build established: Gunner 4177 | -9/Materials | Discovered exit to Materials (range 8) 4286 | -9/Materials | Central database locked down 4286 | -9/Materials | Identified Exp. Sensor Array 4580 | -9/Materials | Learned location of 1 exit from Storage 4615 | -9/Materials | Learned 2 Materials zone layouts 4638 | -9/Materials | Learned Recycling recycling unit intel 4649 | -9/Materials | Identified exit to Mines 4652 | -9/Materials | Learned 4 Recycling zone layouts 4653 | -9/Materials | Learned 2 Materials zone layouts 4664 | -9/Materials | Learned location of 1 exit from Storage 4822 | -9/Materials | Build established: Tank 5678 | -9/Materials | Learned Storage garrison access intel 5726 | -9/Materials | Learned Storage stockpile data 5734 | -9/Materials | Repaired Lgt. Cannon+ 5764 | -9/Materials | Learned location of 1 exit from Recycling 5779 | -9/Materials | Repaired Med. Armor Plating 5813 | -9/Materials | Loaded intel: 12 terminal locations 5837 | -9/Materials | Learned location of Mines (-8) 5861 | -9/Materials | Learned location of Storage (-8) 5974 | -9/Materials | Entered Mines 5976 | -9/Mines | Identified exit to Exiles 5988 | -9/Mines | Received a Rocket Launcher from a helpful Derelict 5995 | -9/Mines | Met a Derelict bent on vengeance 6004 | -9/Mines | Found a hidden stash of uninstalled traps 6189 | -9/Mines | Build established: Scientist-Mutant 6574 | -9/Mines | Deemed a non-threat by the Exiles lab entrance 6698 | -9/Mines | Build established: Scientist-Gunner 6758 | -9/Mines | Learned location of Zion (-6) 6926 | -9/Mines | Entered Exiles 6948 | -9/Exiles | Discovered new exit (range 15) 6961 | -9/Exiles | Met 8R-AWN 6990 | -9/Exiles | Met EX-HEX 7043 | -9/Exiles | Met EX-DEC 7161 | -9/Exiles | Met EX-BIN 7231 | -9/Exiles | Build established: Scavenger-Mutant 7380 | -9/Exiles | Discovered new exit (range 10) 7485 | -9/Exiles | Entered Mines 7876 | -8/Mines | Build established: Scientist-Gunner 8388 | -8/Mines | Entered Materials 8388 | -8/Materials | Evolved 2 slots: Propulsion x1, Utility x1 8910 | -8/Materials | Repaired Med. Armor Plating 8955 | -8/Materials | Discovered new exit (range 13) 8968 | -8/Materials | Discovered new exit (range 16) 9006 | -8/Materials | Identified exit to Storage 9047 | -8/Materials | Central database locked down 9068 | -8/Materials | Entered Storage 9069 | -8/Storage | Identified exit to Recycling 9070 | -8/Storage | Identified exit to Factory 9073 | -8/Storage | Loaded intel: 1 garrison access location 9227 | -8/Storage | Build established: Scavenger-Tank 9890 | -8/Storage | Used back door to open Recycling access 9901 | -8/Storage | Entered Recycling 9902 | -8/Recycling | Identified exit to Scraptown 9902 | -8/Recycling | Identified exit to Factory 9904 | -8/Recycling | Loaded intel: 4 recycling unit locations 10334 | -8/Recycling | Learned location of Lower Caves (-7) 10443 | -8/Recycling | Learned location of 1 exit from Recycling 10485 | -8/Recycling | Learned 4 Factory zone layouts 10519 | -8/Recycling | Learned 8 Factory zone layouts 10574 | -8/Recycling | Learned Factory fabricator intel 10602 | -8/Recycling | Build established: Tank 10616 | -8/Recycling | Learned Storage terminal intel 10741 | -8/Recycling | Scanned before Scraplab entrance 10761 | -8/Recycling | Entered Scraplab 11563 | -8/Recycling | Build established: Commander-Mutant 11711 | -8/Recycling | Entered Scraptown 11711 | -8/Scraptown | Accompanied by 8 allies 11846 | -8/Scraptown | Heard Great Nut preacher, LISTEN AND RECITE! 12056 | -8/Scraptown | Discovered exit to Factory (range 5) 12174 | -8/Scraptown | Visited Red Mages 12222 | -8/Scraptown | Visited Bundlers 12567 | -8/Scraptown | Visited Cyclists 12635 | -8/Scraptown | Visited Spacefarers 12693 | -8/Scraptown | Visited The Evicted 12726 | -8/Scraptown | Visited Cave Peace 12788 | -8/Scraptown | Visited UFD Registry 12788 | -8/Scraptown | Registered with UFD as "Gaussskull" 12838 | -8/Scraptown | Entered Cyclist Reading Room 12908 | -8/Scraptown | Visited LU-1G1's Boring Crew 12992 | -8/Scraptown | Visited Science Guys 13039 | -8/Scraptown | Visited Scrap Suit Storage 13238 | -8/Scraptown | Visited A0-MCA Data Center 13246 | -8/Scraptown | Given an A+ rating by A0-MCA 13291 | -8/Scraptown | Visited Infowarlord's Domain 13351 | -8/Scraptown | Visited Abandonware Association 13368 | -8/Scraptown | Learned abandonware demo "POISON.EXE" 13407 | -8/Scraptown | Visited Curators Association 13471 | -8/Scraptown | Visited Cartography Club 13514 | -8/Scraptown | Found Unknown Processor 13668 | -8/Scraptown | Learned location of Warlord (-5) 13668 | -8/Scraptown | Learned 8 Materials zone layouts 13668 | -8/Scraptown | Learned 8 Research zone layouts 13668 | -8/Scraptown | Learned 4 Storage zone layouts 13668 | -8/Scraptown | Learned 16 Lower Caves zone layouts 13668 | -8/Scraptown | Learned 12 Upper Caves zone layouts 13668 | -8/Scraptown | Learned location of 3 exits from Factory 13668 | -8/Scraptown | Learned location of 1 exit from Lower Caves 13668 | -8/Scraptown | Learned location of 1 exit from Proximity Caves 13723 | -8/Scraptown | Found Deep Structural Scanner 13794 | -8/Scraptown | Visited Junk Cannon Lab 13817 | -8/Scraptown | Found Prototype Special Weapon 13817 | -8/Scraptown | Identified Junk Cannon 14782 | -8/Scraptown | Found Exp. Terrain Scanner 14932 | -8/Scraptown | Found A0-MCA's Component Scanner 15062 | -8/Scraptown | Met Optimus 15062 | -8/Scraptown | Accepted into 0bPrime 15462 | -8/Scraptown | Civil war broke out across Scraptown 15469 | -8/Scraptown | Found Prototype Special Weapon 15469 | -8/Scraptown | Identified LU-1G1's Laser Shovel 15483 | -8/Scraptown | Found Thermal Lance 15523 | -8/Scraptown | Found Prototype Processor 15556 | -8/Scraptown | Found Junk Cannon 15581 | -8/Scraptown | Found MA-1KR's Cyclogen 15592 | -8/Scraptown | Found Potential Leg 15598 | -8/Scraptown | Lost 14 allies 15607 | -8/Scraptown | Found Damper Plating 15664 | -8/Scraptown | Destroyed 11 combat bots 15664 | -8/Scraptown | Lost 3 allies 15666 | -8/Scraptown | Entered Factory 15666 | -6/Factory | Evolved 4 slots: Power x1, Utility x3 15667 | -6/Factory | Identified exit to Factory 15667 | -6/Factory | Identified exit to Lower Caves 15670 | -6/Factory | Loaded intel: 6 fabricator locations 15670 | -6/Factory | Identified Expert System 15859 | -6/Factory | Build established: Tank 16171 | -6/Factory | Loaded intel: 8 recycling unit locations 16315 | -6/Factory | Expert System configures itself against Grunt targets 16415 | -6/Factory | Learned location of Protoforge (-2) 16855 | -6/Factory | Infected Heavy with POISON.EXE 16858 | -6/Factory | Attached CPS modules to H-61 Shepherd. 16896 | -6/Factory | Lost 3 parts (1p1n1u) 17067 | -6/Factory | Cargo convoy interrupted 17242 | -6/Factory | Build established: Scavenger-Tank 17456 | -6/Factory | Entered Lower Caves 17457 | -6/Lower Caves | Identified exit to Lower Caves 17461 | -6/Lower Caves | Ambushed by wild Derelicts 18103 | -6/Lower Caves | Learned 8 Factory zone layouts 18154 | -6/Lower Caves | Entered another Lower Caves area 18364 | -6/Lower Caves | Identified Surveybot 17 Chip 18402 | -6/Lower Caves | Learned location of 1 exit from Factory 18533 | -6/Lower Caves | Discovered new exit (range 16) 18570 | -6/Lower Caves | Identified exit to Zion 18695 | -6/Lower Caves | Entered Zion 18696 | -6/Zion | Identified exit to Proximity Caves 18697 | -6/Zion | Build established: Scavenger-Mutant 19060 | -6/Zion | Build established: Scavenger-Tank 19120 | -6/Zion | Received a hallucinogenic algorithm 19201 | -6/Zion | Turned away by Imprinter 19360 | -6/Zion | Build established: Tank 19454 | -6/Zion | Given A8's code to call for help 19824 | -6/Zion | Enhanced Grunt warped into view, answering call for help 19825 | -6/Zion | Enhanced Grunt warped into view, answering call for help 19943 | -6/Zion | Visited the Megawrench Repair Shop 19943 | -6/Zion | Megawrench repaired 11 parts 20069 | -6/Zion | Discovered new exit (range 3) 20069 | -6/Zion | Saw the warning signs outside the Deep Caves entrance 20078 | -6/Zion | Entered Deep Caves 20078 | -6/Deep Caves | Accompanied by 2 allies 20079 | -6/Deep Caves | Identified exit to Proximity Caves 20166 | -6/Deep Caves | Attacked by Z-Imprinter 20172 | -6/Deep Caves | Attached CPS modules to Z-Imprinter. 20197 | -6/Deep Caves | Allies destroyed Z-Imprinter 20247 | -6/Deep Caves | Found Prototype Device 20247 | -6/Deep Caves | Identified Zio. Metafield Generator 20283 | -6/Deep Caves | Found Prototype Protection 20283 | -6/Deep Caves | Identified Zio. Weapon Casing 20347 | -6/Deep Caves | Found Exp. Thermal Shield 20402 | -6/Deep Caves | Build established: Scavenger-Tank 20410 | -6/Deep Caves | Z-Facility disabled 20451 | -6/Deep Caves | Found Zio. Weapon Casing 20528 | -6/Deep Caves | Found Zio. Weapon Casing 20534 | -6/Deep Caves | Found Prototype Protection 20534 | -6/Deep Caves | Identified Zio. Heavy Carapace 20538 | -6/Deep Caves | Found Zio. Heavy Carapace 20547 | -6/Deep Caves | Found Zio. Weapon Casing 20582 | -6/Deep Caves | Found Zio. Heavy Carapace 20882 | -6/Deep Caves | Spotted AG-62053 20922 | -6/Deep Caves | Destroyed AG-62053 21110 | -6/Deep Caves | Build established: Tank 21379 | -6/Deep Caves | Spotted AG-09257 21416 | -6/Deep Caves | Destroyed AG-09257 21554 | -6/Deep Caves | Triggered Deep Caves wall 21554 | -6/Deep Caves | Spotted AS-32074 21556 | -6/Deep Caves | Exposed GOLEM chamber 21562 | -6/Deep Caves | Spotted AS-11202 21589 | -6/Deep Caves | Destroyed AS-32074 21594 | -6/Deep Caves | Destroyed AS-11202 21618 | -6/Deep Caves | Lost 4 parts (1n3u) 21631 | -6/Deep Caves | Destroyed 39 combat bots 21719 | -6/Deep Caves | Found GOLEM Unit 21736 | -6/Deep Caves | Found GOLEM Unit 21765 | -6/Deep Caves | Found GOLEM Unit 21769 | -6/Deep Caves | Destroyed 10 combat bots 22141 | -6/Deep Caves | Build established: Golem 22592 | -6/Deep Caves | Build established: Scavenger-Golem 23089 | -6/Deep Caves | Build established: Scavenger-Tank 23167 | -6/Deep Caves | Found GOLEM Unit 23536 | -6/Deep Caves | Entered Proximity Caves 23846 | -5/Proximity Caves | Build established: Tank 24070 | -5/Proximity Caves | Learned Factory terminal intel 24802 | -5/Proximity Caves | Entered Factory 24802 | -5/Factory | Accompanied by 1 ally 24802 | -5/Factory | Evolved 2 slots: Utility x2 24803 | -5/Factory | Identified exit to Extension 24805 | -5/Factory | Loaded intel: 28 terminal locations 24881 | -5/Factory | Discovered new exit (range 17) 24945 | -5/Factory | Fabricated Imp. Remote Shield (x2) 25104 | -5/Factory | Build established: Infiltrator-Gunner 25254 | -5/Factory | Central database locked down 25580 | -5/Factory | Loaded intel: 8 recycling unit locations 25918 | -5/Factory | Discovered new exit (range 11) 25918 | -5/Factory | Identified exit to Upper Caves 26020 | -5/Factory | Discovered new exit (range 14) 26146 | -5/Factory | Entered Extension 26146 | -5/Extension | Accompanied by 1 ally 26656 | -5/Extension | Build established: Scavenger-Tank 26690 | -5/Extension | Loaded intel: 1 recycling unit location 26801 | -5/Extension | Rescued a captive Derelict 26802 | -5/Extension | Rescued a captive Derelict 27014 | -5/Extension | Rescued a captive Derelict 27206 | -5/Extension | Spotted B-75 Beast 27221 | -5/Extension | Destroyed B-75 Beast 27234 | -5/Extension | Spotted B-75 Beast 27249 | -5/Extension | Destroyed B-75 Beast 27271 | -5/Extension | Disrupted transfer network 27328 | -5/Extension | Rescued a captive Derelict 27441 | -5/Extension | Rescued a captive Derelict 27442 | -5/Extension | Rescued a captive Derelict 27481 | -5/Extension | Rescued A7 27490 | -5/Extension | Attached CPS modules to A7. 27528 | -5/Extension | Rescued a captive Derelict 27529 | -5/Extension | Rescued a captive Derelict 27551 | -5/Extension | Rescued a captive Derelict 27551 | -5/Extension | Rescued a captive Derelict 27717 | -5/Extension | Lost 3 allies 27780 | -5/Extension | Rescued a captive Derelict 27780 | -5/Extension | Rescued a captive Derelict 27912 | -5/Extension | Rescued a captive Derelict 27912 | -5/Extension | Rescued a captive Derelict 27955 | -5/Extension | Build established: Commander-Tank 27966 | -5/Extension | Disrupted transfer network 27975 | -5/Extension | Discovered new exit (range 10) 27982 | -5/Extension | Discovered new exit (range 7) 28026 | -5/Extension | Extracted ID and sensor layout for unrecognized location from A7's data core 28052 | -5/Extension | Found Prototype Protection 28052 | -5/Extension | Identified Med. Regenerative Plating 28075 | -5/Extension | Lost 10 allies 28134 | -5/Extension | Entered Cetus 28134 | -5/Cetus | Accompanied by 3 allies 28157 | -5/Cetus | Spotted Cetus Guard 28157 | -5/Cetus | Spotted Cetus Guard 28161 | -5/Cetus | Spotted Cetus Guard 28167 | -5/Cetus | Destroyed Cetus Guard 28167 | -5/Cetus | Spotted Cetus Guard 28174 | -5/Cetus | Allies destroyed Cetus Guard 28175 | -5/Cetus | Destroyed Cetus Guard 28179 | -5/Cetus | Destroyed Cetus Guard 28211 | -5/Cetus | System corruption reached 10% 28299 | -5/Cetus | Discovered new exit (range 15) 28327 | -5/Cetus | Entered Archives 28327 | -5/Archives | Accompanied by 2 allies 28436 | -5/Archives | Build established: Scavenger-Tank 28492 | -5/Archives | Discovered new exit (range 16) 28735 | -5/Archives | Discovered new exit (range 18) 28775 | -5/Archives | Identified exit to Hub_04(d) 28775 | -5/Archives | Entered Hub_04(d) 28775 | -5/Hub_04(d) | Accompanied by 1 ally 28909 | -5/Hub_04(d) | Infected Heavy with POISON.EXE 29349 | -5/Hub_04(d) | Discovered new exit (range 17) 29473 | -5/Hub_04(d) | Discovered new exit (range 9) 29726 | -5/Hub_04(d) | Network Hub disabled 29752 | -5/Hub_04(d) | Spotted Lightning 29754 | -5/Hub_04(d) | Spotted Lightning 29760 | -5/Hub_04(d) | Spotted Lightning 29799 | -5/Hub_04(d) | Destroyed Lightning 29849 | -5/Hub_04(d) | Destroyed Lightning 29856 | -5/Hub_04(d) | Destroyed Lightning 29860 | -5/Hub_04(d) | Found Prototype Energy Cannon 29865 | -5/Hub_04(d) | Found Prototype Device 29865 | -5/Hub_04(d) | Identified Exp. EM Shield 29934 | -5/Hub_04(d) | Discovered new exit (range 9) 30203 | -5/Hub_04(d) | Spotted Lightning 30203 | -5/Hub_04(d) | Spotted Lightning 30227 | -5/Hub_04(d) | Destroyed Lightning 30232 | -5/Hub_04(d) | Spotted Lightning 30243 | -5/Hub_04(d) | Destroyed Lightning 30259 | -5/Hub_04(d) | Destroyed Lightning 30272 | -5/Hub_04(d) | Found Prototype Energy Cannon 30369 | -5/Hub_04(d) | Identified EMDS 30374 | -5/Hub_04(d) | Network Hub disabled 30418 | -5/Hub_04(d) | Network Hub disabled 30424 | -5/Hub_04(d) | Entered Factory 30424 | -4/Factory | Evolved 2 slots: Power x1, Utility x1 30924 | -4/Factory | First assault squad dispatched 31210 | -4/Factory | Identified exit to Upper Caves 31226 | -4/Factory | Loaded intel: 7 recycling unit locations 31251 | -4/Factory | Garrison activated, responded to threat 31298 | -4/Factory | Destroyed 10 combat bots 31730 | -4/Factory | Entered Upper Caves 32149 | -4/Upper Caves | Build established: Scavenger-Golem 32674 | -4/Upper Caves | Build established: Scavenger-Tank 32974 | -4/Upper Caves | Discovered new exit (range 13) 33008 | -4/Upper Caves | Identified exit to Upper Caves 33990 | -4/Upper Caves | Entered another Upper Caves area 33990 | -4/Upper Caves | Accompanied by 1 ally 34215 | -4/Upper Caves | Discovered new exit (range 11) 34245 | -4/Upper Caves | Attacked by a delusional Derelict stockpiling parts 34338 | -4/Upper Caves | Identified exit to Research 35513 | -4/Upper Caves | Discovered new exit (range 15) 35640 | -4/Upper Caves | Attracted the attention of an 0b10 checkpoint 35813 | -4/Upper Caves | Entered Zhirov 35813 | -4/Zhirov | Accompanied by 1 ally 35813 | -4/Zhirov | Discovered new exit (range 3) 35814 | -4/Zhirov | Identified exit to Proximity Caves 35857 | -4/Zhirov | Met Zhirov 35917 | -4/Zhirov | Learned location of Testing (-2) 35917 | -4/Zhirov | Learned location of Command (-1) 35941 | -4/Zhirov | Zhirov requested help retrieving the SGEMP Prototype 35977 | -4/Zhirov | Found Alien Artifact 35977 | -4/Zhirov | Identified Integrated Dissipator 35977 | -4/Zhirov | Installed Integrated Dissipator, increased core heat dissipation (+20) 36204 | -4/Zhirov | Found Alien Artifact 36327 | -4/Zhirov | Build established: Scavenger-Mutant 36568 | -4/Zhirov | Entered Proximity Caves 36568 | -3/Proximity Caves | Accompanied by 1 ally 36723 | -3/Proximity Caves | Build established: Scavenger-Tank 36966 | -3/Proximity Caves | Received a Behemoth hack from an annoying Tinkerer 38181 | -3/Proximity Caves | Found Imp. Powered Armor 38270 | -3/Proximity Caves | Tech Extrapolator generated special schematic: Energy Deflector 38465 | -3/Proximity Caves | Discovered exit to Research (range 16) 38695 | -3/Proximity Caves | Entered Research 38695 | -3/Research | Accompanied by 1 ally 38695 | -3/Research | Evolved 2 slots: Propulsion x2 38696 | -3/Research | Identified exit to Quarantine 38697 | -3/Research | Identified exit to Research 38993 | -3/Research | Repaired Tactical Coordination Suite 39143 | -3/Research | Loaded intel: 5 recycling unit locations 39280 | -3/Research | Found Unknown Device 39280 | -3/Research | Identified Quantum Capacitor 39527 | -3/Research | Repaired Centrium Heavy Treads? 39969 | -3/Research | Discovered exit to Research (range 14) 40001 | -3/Research | Identified exit to Armory 40698 | -3/Research | Found Spectral Analyzer 40813 | -3/Research | Fabricated Energy Deflector (x1) 41258 | -3/Research | Destroyed 8 combat bots 41273 | -3/Research | Entered Armory 41362 | -3/Armory | Lost 3 allies 41491 | -3/Armory | Build established: Infiltrator-Tank 41995 | -3/Armory | Identified Transdimensional Reconstructor 41995 | -3/Armory | Warped through subspace to slip node 41995 | -3/Armory | Discovered new exit (range 1) 41999 | -3/Armory | Identified exit to Lab 42063 | -3/Armory | Fabricated Adv. Cloaking Device (x2) 42273 | -3/Armory | First assault squad dispatched 42440 | -3/Armory | Entered Lab 42440 | -3/Lab | Discovered exit to Research (range 9) 42468 | -3/Lab | Hidden lab's door opened automatically 42468 | -3/Lab | Sensor layout match revealed 42469 | -3/Lab | Gained access to the hidden lab's interior 42559 | -3/Lab | Build established: Tank 42776 | -3/Lab | Found Alien Artifact 42776 | -3/Lab | Identified Core Reset Matrix 42776 | -3/Lab | Used Core Reset Matrix 42780 | -3/Lab | Sensed 3 artifacts in vicinity 42789 | -3/Lab | Found Transdimensional Reconstructor 42799 | -3/Lab | Found Integrated Reactor 42799 | -3/Lab | Installed Integrated Reactor, increased core energy generation (+10) 42809 | -3/Lab | Found Core Regenerator 42817 | -3/Lab | Detected by scanners 42838 | -3/Lab | Found Prototype Protection 42838 | -3/Lab | Identified Exp. Powered Armor 42843 | -3/Lab | Confronted by A5 42872 | -3/Lab | Found Prototype Energy Cannon 42880 | -3/Lab | Destroyed A5 42895 | -3/Lab | Found Prototype Energy Gun 42906 | -3/Lab | Found Prototype Hackware 42954 | -3/Lab | Discovered exit to Research (range 9) 42965 | -3/Lab | Identified Hyp. EM Gauss Rifle 42965 | -3/Lab | Identified Quantum Router 42965 | -3/Lab | Identified Warp Cannon 43067 | -3/Lab | Found Gui. Remote Datajack 43335 | -3/Lab | Build established: Alien-Tank 44230 | -3/Lab | Entered Research 44230 | -2/Research | Accompanied by 1 ally 44230 | -2/Research | Evolved 2 slots: Utility x2 44537 | -2/Research | Lost 3 allies 44845 | -2/Research | Intercept squad dispatched 44875 | -2/Research | Spotted Tracker 44875 | -2/Research | Spotted Tracker 44880 | -2/Research | Destroyed Tracker 44883 | -2/Research | Destroyed Tracker 44908 | -2/Research | Spotted Combat Programmer 44910 | -2/Research | Spotted Combat Programmer 44912 | -2/Research | Destroyed Combat Programmer 44920 | -2/Research | Destroyed Combat Programmer 45009 | -2/Research | Discovered new exit (range 9) 45114 | -2/Research | Identified exit to Testing 45170 | -2/Research | Loaded intel: 5 recycling unit locations 45265 | -2/Research | Entered Testing 45265 | -2/Testing | Accompanied by 1 ally 45354 | -2/Testing | Found System Mapper 45360 | -2/Testing | Protovariant out of control (PY-2ER46CI7AP) 45376 | -2/Testing | Garrison activated, responded to threat 45396 | -2/Testing | Central database locked down 45681 | -2/Testing | Build established: Hacker-Tank 45858 | -2/Testing | Found Cld. Nova Cannon 45997 | -2/Testing | Found Exp. Cloaking Device 46018 | -2/Testing | Found Exp. Shield Generator 46259 | -2/Testing | Intercept squad dispatched 46267 | -2/Testing | Spotted Tracker 46268 | -2/Testing | Spotted Tracker 46272 | -2/Testing | Destroyed Tracker 46281 | -2/Testing | Destroyed Tracker 46296 | -2/Testing | Spotted Combat Programmer 46297 | -2/Testing | Spotted Combat Programmer 46303 | -2/Testing | Destroyed Combat Programmer 46308 | -2/Testing | Destroyed Combat Programmer 46508 | -2/Testing | Found SHELL Armor 46512 | -2/Testing | Found Hvy. Regenerative Plating 46743 | -2/Testing | Discovered new exit (range 24) 46816 | -2/Testing | Fabricated Femtoactuators (x1) 46966 | -2/Testing | Intercept squad dispatched 46979 | -2/Testing | Spotted Tracker 46980 | -2/Testing | Spotted Tracker 46984 | -2/Testing | Destroyed Tracker 46988 | -2/Testing | Destroyed Tracker 47003 | -2/Testing | Spotted Combat Programmer 47009 | -2/Testing | Destroyed Combat Programmer 47009 | -2/Testing | Spotted Combat Programmer 47016 | -2/Testing | Destroyed Combat Programmer 47230 | -2/Testing | Destroyed Fortress 47265 | -2/Testing | First assault squad dispatched 47275 | -2/Testing | Found Vortex Chain Reactor 47280 | -2/Testing | Found Thermal Barrier 47381 | -2/Testing | Discovered new exit (range 6) 47381 | -2/Testing | Discovered new exit (range 6) 47388 | -2/Testing | Entered Protoforge 47389 | -2/Protoforge | Sensed 2 artifacts in vicinity 47428 | -2/Protoforge | Central database locked down 47434 | -2/Protoforge | Identified exit to Access 47482 | -2/Protoforge | Spotted Hotshot 47486 | -2/Protoforge | Spotted Hotshot 47488 | -2/Protoforge | Superfortress began startup sequence 47489 | -2/Protoforge | Destroyed Hotshot 47507 | -2/Protoforge | Destroyed Hotshot 47511 | -2/Protoforge | System corruption reached 10% 47615 | -2/Protoforge | Spotted Hotshot 47617 | -2/Protoforge | Spotted Hotshot 47619 | -2/Protoforge | Destroyed Hotshot 47644 | -2/Protoforge | Destroyed Hotshot 47944 | -2/Protoforge | Destroyed EXE-6 47987 | -2/Protoforge | Spotted SKR-2 47999 | -2/Protoforge | Spotted SKR-2 48002 | -2/Protoforge | Spotted EXE-6 48002 | -2/Protoforge | Spotted SKR-2 48008 | -2/Protoforge | Destroyed EXE-6 48098 | -2/Protoforge | UFD initiated attack on Protoforge 48098 | -2/Protoforge | Loaded intel: 3 recycling unit locations 48129 | -2/Protoforge | Scrapoid reinforcements arrived 48130 | -2/Protoforge | Scraphulk reinforcements arrived? 48135 | -2/Protoforge | Optimus greeted in Protoforge 48153 | -2/Protoforge | Allies destroyed SKR-2 48156 | -2/Protoforge | Destroyed SKR-2 48181 | -2/Protoforge | Lost 4 allies 48208 | -2/Protoforge | Spotted AP7-3 48220 | -2/Protoforge | Allies destroyed AP7-3 48299 | -2/Protoforge | Spotted Striker 48304 | -2/Protoforge | Spotted Striker 48307 | -2/Protoforge | Destroyed Striker 48312 | -2/Protoforge | Destroyed Striker 48316 | -2/Protoforge | Spotted Executioner 48319 | -2/Protoforge | Destroyed Executioner 48320 | -2/Protoforge | Spotted Overlord 48321 | -2/Protoforge | P-80 Master assimilated allied 02F18-D 48328 | -2/Protoforge | UFD reported confirmed Drillbomb installation 48329 | -2/Protoforge | Spotted Executioner 48333 | -2/Protoforge | P-80 Master assimilated allied VL-RFD(j) 48333 | -2/Protoforge | Warped through subspace 48356 | -2/Protoforge | UFD reported confirmed Drillbomb installation 48360 | -2/Protoforge | Lost 6 allies 48417 | -2/Protoforge | Destroyed Executioner 48441 | -2/Protoforge | Destroyed Overlord 48443 | -2/Protoforge | Spotted Immortal 48447 | -2/Protoforge | Spotted Immortal 48450 | -2/Protoforge | Spotted Striker 48452 | -2/Protoforge | Spotted SKR-2 48455 | -2/Protoforge | Spotted Immortal 48459 | -2/Protoforge | Spotted Executioner 48466 | -2/Protoforge | Destroyed Immortal 48467 | -2/Protoforge | Lost 4 allies 48470 | -2/Protoforge | Destroyed Immortal 48482 | -2/Protoforge | Destroyed Immortal 48491 | -2/Protoforge | Destroyed Striker 48495 | -2/Protoforge | Destroyed SKR-2 48516 | -2/Protoforge | Found Exp. Jetlance 48522 | -2/Protoforge | Lost 3 parts (1p2u) 48525 | -2/Protoforge | Destroyed 22 combat bots 48544 | -2/Protoforge | P-80 Master assimilated allied 6Z-E5A(j) 48555 | -2/Protoforge | UFD reported confirmed Drillbomb installation 48573 | -2/Protoforge | Spotted Striker 48574 | -2/Protoforge | Spotted Striker 48580 | -2/Protoforge | Destroyed Striker 48593 | -2/Protoforge | Destroyed Striker 48606 | -2/Protoforge | Lost 5 allies 48615 | -2/Protoforge | Spotted Executioner 48617 | -2/Protoforge | Found Scrap Suit 48619 | -2/Protoforge | Spotted Executioner 48619 | -2/Protoforge | Spotted Hotshot 48624 | -2/Protoforge | Destroyed 10 combat bots 48630 | -2/Protoforge | Spotted Striker 48632 | -2/Protoforge | Destroyed Hotshot 48633 | -2/Protoforge | Destroyed Executioner 48634 | -2/Protoforge | Destroyed Executioner 48637 | -2/Protoforge | Destroyed Striker 48638 | -2/Protoforge | Destroyed Executioner 48671 | -2/Protoforge | Lost 3 allies 48675 | -2/Protoforge | Destroyed 17 combat bots 48679 | -2/Protoforge | Spotted Hotshot 48682 | -2/Protoforge | Spotted Hotshot 48692 | -2/Protoforge | Spotted Striker 48696 | -2/Protoforge | Spotted Executioner 48703 | -2/Protoforge | Spotted Striker 48704 | -2/Protoforge | Destroyed Executioner 48705 | -2/Protoforge | Spotted Striker 48706 | -2/Protoforge | Core integrity fell below 50% 48713 | -2/Protoforge | Destroyed Striker 48719 | -2/Protoforge | Spotted Executioner 48721 | -2/Protoforge | Spotted Executioner 48726 | -2/Protoforge | Lost 5 allies 48750 | -2/Protoforge | System corruption reached 30% 48751 | -2/Protoforge | Used Core Regenerator, restored core integrity (+362) 48793 | -2/Protoforge | Spotted Executioner 48801 | -2/Protoforge | Core integrity fell below 20% 48806 | -2/Protoforge | Destroyed Striker 48806 | -2/Protoforge | Released all parts (12) 48808 | -2/Protoforge | Lost 6 allies 48815 | -2/Protoforge | Destroyed by S-43 Plague with Heavy Machine Gun Last Messages --------------- 48806_ Released Rnf. Antimatter Reactor. 48806_ Released Tactical Coordination Suite. 48806_ Released Huge Storage Unit. 48806_ Released Asb. Combat Suite. 48806_ Released Graphene Brace. 48806_ Released Scrap Suit. 48806_ Released Sensor Drone Bay. 48806_ Released Adv. Transmission Jammer. [Achievement: Live, Flee, And Rebuild] 48807_ Slug penetrates Wall. 48807_ Triggered Alarm Trap. 48807_ An alarm sounds. 48807_ ALERT: Alarm triggered, dispatching investigation squad. 48809_ ALERT: Hostiles spotted, dispatching reinforcements to Terminal F014. 48814_ Penetrated by Slug. 48814_ Slug penetrates Concept Prefabricator. 48814_ Concept Prefabricator disabled. 48814_ S-43 Plague destroyed. Map ----- +----------------------------------------------------+ | ?????????????????????????????????????????????????? | | ?????????????????????????????????????????????????? | | ?????????????????????????????????????????????????? | | ?????????????????????????????????????????????????? | | ?????????????????????????????????????????????????? | | ?????????????????????????????????????????????????? | | ?????????????????????????????????????????????????? | | ?????????????????????????????????????????????????? | | ?????????????????????????????????????????????????? | | ?????????????????????????????????????????????????? | | ?????????????????????????????????????????????????? | | ?????????????????????????????????????????????????? | | ????????????????????????????????#############????? | | ??????????????????????????????###############????? | | ?????????????????????#############?????????####### | | ?????????????????????###########???????????####### | | ?????????????????????##??????###???????????#?????? | | ?????????????????????##??????###???????????#?????? | | ?????########????????##??????###???????????#??? ?? | | ?????########????????##??????###???????????#???T" | | ?????##????##????????##??????#####?????????#???"" | | ??#####????############??????#####?????????#??? ? | | ??#####?